{"text_format":"1","workbook":"xlsx","n_sheets":25,"sheets":["作成に伴う注意事項","黄色のシートをご記入願います⇒","【様式１】ICT診断依頼書（基本情報）","管理シート","ICT診断同意書","事前アンケート（セキュリティ）","事前アンケート（LANパフォーマンス）","入館申請","調査実施後⇒","プルダウン","1.ネットワーク構成図","2.平面図","3.機器情報","4.調査シート（LANパフォーマンス）","5.調査シート（セキュリティ）","6.申込書兼調査報告書チェックリスト","7.申し送り事項","レポート作成時⇒","基本情報シート","申し送り事項シート","オンサイトアンケート","8.ヒアリングシート（LANパフォーマンス）","9.ヒアリングシート（セキュリティ）","CAF","挿入計算シート"],"not_rendered":{"charts":0,"images":23,"macros":1,"external_links":1,"defined_names":412,"comments":4,"pivot_tables":0},"unopened":[],"bounds":{"document_bytes":16777216,"sheet_cells":100000,"rows_first":2000,"rows_last":500,"rows_between":2000,"halvings":0,"cell_chars":16384,"cell_head_chars":4096},"cells_cut":0,"cells_raw":0,"read":"whole","date_system":"1900"}

{"sheet":"作成に伴う注意事項","index":0,"n_rows":10,"n_cols":5,"rows_kept":10,"cut":false,"hidden":true,"merged":[]}
[]
[null,"記載者を色により識別しておりますので、記載に伴っては以下を確認願います。"]
[null,"また、各カラムの記載に伴う注意事項をコメントで記載しておりますので記載時に確認願います。"]
[]
[]
[null,"色","区分","記載者","注意事項"]
[null,null,"必須","CC（営業担当者）"]
[null,null,"必須","オンサイト"]
[null,null,"必須","集約センタ"]
[null,null,"必須","レポート作成担当"]

{"sheet":"黄色のシートをご記入願います⇒","index":1,"n_rows":0,"n_cols":0,"rows_kept":0,"cut":false,"hidden":false,"merged":[]}

{"sheet":"【様式１】ICT診断依頼書（基本情報）","index":2,"n_rows":77,"n_cols":53,"rows_kept":77,"cut":false,"hidden":false,"merged":[[23,11,23,14],[23,15,23,16],[23,17,23,19],[23,20,23,21],[23,22,23,24],[23,25,23,26],[24,11,24,14],[24,15,24,16],[24,17,24,19],[24,20,24,21],[24,22,24,24],[24,25,24,26],[1,1,1,53],[3,45,3,52],[10,1,10,8],[4,30,4,35],[15,28,15,30],[15,31,15,33],[15,37,15,39],[15,40,15,42],[15,44,15,48],[15,10,15,12],[15,13,15,15],[15,16,15,18],[15,19,15,21],[15,22,15,24],[15,25,15,27],[4,36,4,53],[6,9,8,13],[12,35,12,39],[12,40,12,53],[11,35,11,39],[11,40,11,53],[8,31,8,36],[9,37,9,39],[9,40,9,42],[76,1,77,24],[6,56,6,75],[12,56,12,75],[6,1,9,8],[6,14,6,16],[6,17,6,30],[7,14,8,30],[6,40,7,53],[6,37,7,39],[6,31,7,36],[26,11,26,14],[26,15,26,16],[26,17,26,19],[26,20,26,21],[26,22,26,24],[26,25,26,26],[69,14,69,26],[75,1,75,13],[75,14,75,26],[15,34,15,36],[16,1,16,7],[17,1,19,7],[19,8,19,15],[18,8,18,15],[40,1,40,48],[41,1,41,11],[41,12,41,19],[41,20,41,53],[42,12,42,19],[42,20,42,23],[42,24,42,53],[42,1,42,11],[35,28,35,30],[39,1,39,53],[35,31,35,53],[35,9,35,27],[64,1,64,8],[64,9,64,11],[71,1,71,13],[70,14,70,26],[71,27,71,36],[71,37,71,53],[72,1,74,13],[72,14,74,53],[69,1,69,13],[68,14,68,26],[69,27,69,36],[69,37,69,53],[70,1,70,13],[70,27,70,36],[70,37,70,53],[71,14,71,26],[68,27,68,36],[59,1,59,48],[60,1,60,8],[60,9,60,11],[63,1,63,8],[63,9,63,11],[63,12,63,53],[60,12,60,53],[61,1,61,8],[61,9,61,11],[61,12,61,53],[62,1,62,8],[62,9,62,11],[62,12,62,53],[43,24,43,53],[44,12,44,19],[44,24,44,53],[43,1,43,11],[44,1,44,11],[48,1,48,48],[45,1,45,11],[46,1,46,11],[45,12,45,19],[44,20,44,23],[45,24,45,53],[46,12,46,19],[46,20,46,23],[46,24,46,53],[51,1,51,8],[51,9,51,26],[51,27,51,36],[51,37,51,53],[53,1,53,53],[68,37,68,53],[65,1,65,53],[67,1,67,13],[67,14,67,26],[67,27,67,36],[67,37,67,53],[68,1,68,13],[57,9,57,26],[57,27,57,36],[55,9,55,26],[55,27,55,36],[56,1,56,8],[56,9,56,26],[56,27,56,36],[56,37,56,53],[57,1,57,8],[55,37,55,53],[57,37,57,53],[64,12,64,53],[25,15,25,16],[25,17,25,19],[25,20,25,21],[25,22,25,24],[25,25,25,26],[66,1,66,53],[36,1,37,8],[36,9,37,20],[36,21,37,28],[36,29,37,53],[50,9,50,26],[50,27,50,36],[50,37,50,53],[50,1,50,8],[54,1,54,8],[54,9,54,26],[54,27,54,36],[54,37,54,53],[55,1,55,8],[49,1,49,8],[49,9,49,15],[49,16,49,53],[43,12,43,19],[43,20,43,23],[30,9,30,12],[31,9,32,12],[33,9,33,12],[30,13,30,53],[31,13,31,16],[31,17,31,53],[32,13,32,53],[33,13,33,53],[26,41,26,48],[29,30,29,32],[26,49,26,53],[11,1,13,8],[13,9,13,21],[9,9,9,13],[10,9,10,13],[35,1,35,8],[34,1,34,8],[34,9,34,21],[34,22,34,24],[16,13,16,15],[16,8,16,12],[10,14,10,20],[11,9,12,13],[11,14,11,16],[11,17,11,34],[12,14,12,34],[9,31,9,36],[9,14,9,30],[26,30,26,32],[26,33,26,40],[34,25,34,53],[23,41,25,53],[26,9,26,10],[29,1,33,8],[29,9,29,29],[9,43,9,53],[8,37,8,39],[16,16,16,39],[16,40,16,50],[19,16,19,21],[18,16,18,18],[18,19,18,21],[10,21,10,24],[10,25,10,53],[17,16,17,18],[17,19,17,21],[13,22,13,53],[17,48,17,52],[18,48,18,52],[19,48,19,52],[8,44,8,45],[8,46,8,47],[8,48,8,49],[8,50,8,51],[8,40,8,43],[20,48,20,52],[17,22,17,42],[18,22,18,42],[19,22,19,42],[20,20,20,42],[17,8,17,15],[26,1,26,7],[23,33,23,40],[24,33,24,40],[25,33,25,40],[17,43,17,47],[18,43,18,47],[19,43,19,47],[20,43,20,47],[23,30,23,32],[25,30,25,32],[23,1,23,8],[24,1,24,8],[25,1,25,8],[23,9,23,10],[24,9,24,10],[25,9,25,10],[24,30,24,32],[25,11,25,14]]}
[]
[null,"「Ｎにおまかせ！ITサポート 診断プラン ICT診断依頼書」"]
[]
[null,null,null,null,null,null,null,null,null,null,null,null,null,null,null,null,null,null,null,null,null,null,null,null,null,null,null,null,null,null,null,null,null,null,null,null,null,null,null,null,null,null,null,null,null,"Ver.1.2(2024.10.22)"]
[null,null,null,null,null,null,null,null,null,null,null,null,null,null,null,null,null,null,null,null,null,null,null,null,null,null,null,null,null,null,"メール送付先: ",null,null,null,null,null,"ict-operation-ml@east.ntt.co.jp"]
[]
[null,"サービスご契約内容",null,null,null,null,null,null,null,"ご契約者名\n【必須】",null,null,null,null,"ふりがな",null,null,null,null,null,null,null,null,null,null,null,null,null,null,null,null,"お客さまID\n（NIS+数字10桁）",null,null,null,null,null,"NIS"]
[]
[null,null,null,null,null,null,null,null,null,null,null,null,null,null,null,null,null,null,null,null,null,null,null,null,null,null,null,null,null,null,null,"ご利用開始日",null,null,null,null,null,"西暦",null,null,null,null,null,null,"年",null,null,null,"月",null,null,null,"日"]
[null,null,null,null,null,null,null,null,null,"電話番号\n【必須】",null,null,null,null,null,null,null,null,null,null,null,null,null,null,null,null,null,null,null,null,null,"ご契約プラン",null,null,null,null,null,"診断プラン",null,null,null,null,null,"※お客さまＩＤ、ご利用開始日、ご契約プランは、利用開始時に送付の書類（開通のご案内）をご確認ください"]
[null,"調査場所",null,null,null,null,null,null,null,"郵便番号",null,null,null,null,null,null,null,null,null,null,null,"住所\n【必須】"]
[null,"ご担当者",null,null,null,null,null,null,null,"お名前\n【必須】",null,null,null,null,"ふりがな",null,null,null,null,null,null,null,null,null,null,null,null,null,null,null,null,null,null,null,null,"部署名"]
[null,null,null,null,null,null,null,null,null,null,null,null,null,null,null,null,null,null,null,null,null,null,null,null,null,null,null,null,null,null,null,null,null,null,null,"ご連絡先TEL\n【必須】"]
[null,null,null,null,null,null,null,null,null,"メールアドレス【必須】\n※診断レポート送付先となります"]
[]
[null,"■ICT環境診断依頼内容"]
[null,"PC台数【必須】",null,null,null,null,null,null,null,null,null,null,null,"台",null,null,"※ご契約プランに応じて調査対象のPC台数に上限値があります\n　　診断プランS：２０台まで　診断プランM：４０台まで　診断プランL：６０台まで"]
[null,"オプション調査",null,null,null,null,null,null,"電波調査フロア/\nアクセスポイント追加",null,null,null,null,null,null,null,null,null,null,"箇所",null,null,"※1箇所あたり 15,400円（税込）",null,null,null,null,null,null,null,null,null,null,null,null,null,null,null,null,null,null,null,null,{"$f":"IF(Q18=\"\",0,Q18*管理シート!E1)","v":0},null,null,null,null,"円（税込）"]
[null,null,null,null,null,null,null,null,"配線ルート/\nポート収容状況調査",null,null,null,null,null,null,null,null,null,null,"台",null,null,"※追加10台あたり 27,500円（税込）",null,null,null,null,null,null,null,null,null,null,null,null,null,null,null,null,null,null,null,null,{"$f":"IF(Q19=\"\",0,Q19*管理シート!E2)","v":0},null,null,null,null,"円（税込）"]
[null,null,null,null,null,null,null,null,"土休日夜間調査",null,null,null,null,null,null,null,null,null,null,null,null,null,"※祝日を除く月曜日から金曜日の9時から17時半を超える調査",null,null,null,null,null,null,null,null,null,null,null,null,null,null,null,null,null,null,null,null,{"$f":"IF(Q20=\"有\",管理シート!E3,0)","v":0},null,null,null,null,"円（税込）"]
[null,null,null,null,null,null,null,null,null,null,null,null,null,null,null,null,null,null,null,null,"※オプション調査の合計金額は右記となり、月額利用料と合算しご請求いたします",null,null,null,null,null,null,null,null,null,null,null,null,null,null,null,null,null,null,null,null,null,null,{"$f":"SUM(AP18:AT20)","v":0},null,null,null,null,"円（税込）"]
[]
[null,"■　調査希望日"]
[null,"第１希望日【必須】",null,null,null,null,null,null,null,"西暦",null,null,null,null,null,"年",null,null,null,null,"月",null,null,null,null,"日",null,null,null,null,"時間帯",null,null,null,null,null,null,null,null,null,null,"※依頼書送付日から起算して、最短で6営業日目以降の日程を記載してください。"]
[null,"第2希望日【必須】",null,null,null,null,null,null,null,"西暦",null,null,null,null,null,"年",null,null,null,null,"月",null,null,null,null,"日",null,null,null,null,"時間帯"]
[null,"第3希望日【必須】",null,null,null,null,null,null,null,"西暦",null,null,null,null,null,"年",null,null,null,null,"月",null,null,null,null,"日",null,null,null,null,"時間帯"]
[null,"弊社記入欄",null,null,null,null,null,null,"確定日","西暦",null,null,null,null,null,"年",null,null,null,null,"月",null,null,null,null,"日",null,null,null,null,"時間帯",null,null,null,null,null,null,null,null,null,null,"日程調整窓口"]
[]
[null,"■　調査先情報"]
[null,"訪問時のご連絡先\n【必須】",null,null,null,null,null,null,null,"「ご担当者」欄と同一の場合、右にチェックをしてください"]
[null,null,null,null,null,null,null,null,null,"部署名"]
[null,null,null,null,null,null,null,null,null,"氏名",null,null,null,"ふりがな"]
[]
[null,null,null,null,null,null,null,null,null,"連絡先"]
[null,"事前アンケート",null,null,null,null,null,null,null,"事前アンケートに回答しました",null,null,null,null,null,null,null,null,null,null,null,null,"□",null,null,"※「事前アンケート（LANパフォーマンス）」「事前アンケート（セキュリティ）」シートを参照ください"]
[null,"作業者情報",null,null,null,null,null,null,null,"訪問日事前に作業者情報受領を希望する",null,null,null,null,null,null,null,null,null,null,null,null,null,null,null,null,null,null,"□"]
[null,"調査範囲",null,null,null,null,null,null,null,null,null,null,null,null,null,null,null,null,null,null,null,"左記が「拠点全体」以外の場合、詳細を記入"]
[]
[]
[null,"以下の項目については、事前にご記入いただくことで調査、及びレポート作成に活用させていただきます\n※全てご記入頂かなくても構いません"]
[null,"■　調査拠点回線情報"]
[null,null,null,null,null,null,null,null,null,null,null,null,"種別",null,null,null,null,null,null,null,"契約番号　※NTT東日本回線の場合記載願います"]
[null,"回線①"]
[null,"回線②"]
[null,"回線③"]
[null,"回線④"]
[null,"回線⑤"]
[]
[null,"■　ルータ情報（ログインID・パスワード不明の場合も”不明”と記載願います）"]
[null,"接続回線"]
[null,"メーカー名",null,null,null,null,null,null,null,null,null,null,null,null,null,null,null,null,null,null,null,null,null,null,null,null,null,"型番"]
[null,"ログインID",null,null,null,null,null,null,null,null,null,null,null,null,null,null,null,null,null,null,null,null,null,null,null,null,null,"パスワード"]
[]
[null,"■　無線LANについて（パスワード不明の場合も”不明”と記載願います）"]
[null,"SSID①",null,null,null,null,null,null,null,null,null,null,null,null,null,null,null,null,null,null,null,null,null,null,null,null,null,"パスワード"]
[null,"SSID②",null,null,null,null,null,null,null,null,null,null,null,null,null,null,null,null,null,null,null,null,null,null,null,null,null,"パスワード"]
[null,"SSID③",null,null,null,null,null,null,null,null,null,null,null,null,null,null,null,null,null,null,null,null,null,null,null,null,null,"パスワード"]
[null,"SSID④",null,null,null,null,null,null,null,null,null,null,null,null,null,null,null,null,null,null,null,null,null,null,null,null,null,"パスワード"]
[]
[null,"■　NW関連資料有無　以下の資料についてご提供可能でしたら■を選択し、併せてご送付願います。"]
[null,"共通",null,null,null,null,null,null,null,"□",null,null,"NW構成図（物理構成図）"]
[null,"共通",null,null,null,null,null,null,null,"□",null,null,"NW構成図（論理構成図）"]
[null,"共通",null,null,null,null,null,null,null,"□",null,null,"無線アクセスポイント配置図・ラック図・フロア図（AP配置図）"]
[null,"共通",null,null,null,null,null,null,null,"□",null,null,"機器一覧（導入年月・導入ベンダ・契約形態　等）"]
[null,"LANパフォーマンス",null,null,null,null,null,null,null,"□",null,null,"ご利用無線環境のパラメータ（SSID/PW利用周波数帯、利用ch、APのMACアドレス一覧）"]
[]
[null,"■　弊社記入欄"]
[null,"支社/支店",null,null,null,null,null,null,null,null,null,null,null,null,null,null,null,null,null,null,null,null,null,null,null,null,null,"部"]
[null,"部門",null,null,null,null,null,null,null,null,null,null,null,null,null,null,null,null,null,null,null,null,null,null,null,null,null,"担当名/ユニット"]
[null,"販売担当者名",null,null,null,null,null,null,null,null,null,null,null,null,null,null,null,null,null,null,null,null,null,null,null,null,null,"販売担当者氏名コード"]
[null,"販売chコード",null,null,null,null,null,null,null,null,null,null,null,null,null,null,null,null,null,null,null,null,null,null,null,null,null,"TEL"]
[null,"Mail",null,null,null,null,null,null,null,null,null,null,null,null,null,null,null,null,null,null,null,null,null,null,null,null,null,"Biz-MERGE提案PJコード"]
[null,"連絡欄"]
[]
[]
[null,"企業ＩＤ"]
[null,"メール送付先: ict-operation-ml@east.ntt.co.jp"]

{"sheet":"管理シート","index":3,"n_rows":31,"n_cols":13,"rows_kept":31,"cut":false,"hidden":true,"merged":[]}
[2024,1,1,"S",15400,60500,"有","AM","営業","お客様","NTT東日本","CAF","回線①"]
[2025,2,2,"M",27500,55000,"無","PM","設備","営業担当","他社","COP","回線②"]
[2026,3,3,"L",22000,55000,null,"夜間",null,null,null,null,"回線③"]
[null,4,4,null,null,null,null,null,null,null,null,null,"回線④"]
[null,5,5,null,null,null,null,null,null,null,null,null,"回線⑤"]
[null,6,6]
[null,7,7]
[null,8,8]
[null,9,9]
[null,10,10]
[null,11,11]
[null,12,12]
[null,null,13]
[null,null,14]
[null,null,15]
[null,null,16]
[null,null,17]
[null,null,18]
[null,null,19]
[null,null,20]
[null,null,21]
[null,null,22]
[null,null,23]
[null,null,24]
[null,null,25]
[null,null,26]
[null,null,27]
[null,null,28]
[null,null,29]
[null,null,30]
[null,null,31]

{"sheet":"ICT診断同意書","index":4,"n_rows":53,"n_cols":49,"rows_kept":53,"cut":false,"hidden":false,"merged":[[1,1,1,53],[6,4,44,51],[46,16,46,18],[46,35,46,36],[46,37,46,39],[46,41,46,43],[46,45,46,47],[46,4,46,15],[50,4,51,8],[50,9,51,51],[52,4,54,8],[52,9,54,51],[47,27,47,32],[47,33,47,36],[47,37,47,51],[48,9,48,51],[49,4,49,8],[49,9,49,51],[47,4,48,8],[47,9,47,10],[47,11,47,13],[47,15,47,18],[47,19,47,22],[47,23,47,26]]}
[]
[null,"Ｎにおまかせ！ITサポート 診断プラン ICT診断同意書"]
[]
[]
[]
[]
[null,null,null,null,"東日本電信電話株式会社（以下NTT東日本）が規定する以下の条項について同意の上、申込を行います。\n\n（１）本作業における留意事項について\n　　○本作業に必要な環境、情報等の不足、天候不良等、当社の責に帰することのできない事由により、\n　　　 作業員の判断で本作業への着手、及び本作業を中止することがあります。\n　　○本作業に必要な電力、消耗品及びその他の便宜（端末へのログイン、電話又は通信回線、通信料等の使用を含む）を、当社に対して無償で提供していただきます。\n　　○調査にあたり、電源・通信断等により、お客様の業務が中断される可能性があります。\n　　○お客様環境等により、調査をお受けできない場合があります。。\n　　○調査員が入室できないエリアや高所に関しては調査が可能な範囲で調査を実施します。調査方法、調査内容については、当社にて判断します。\n　　○以下の前提条件が満たせない場合、調査が実施できない場合があります。\n　　（1）お客さまの立会い　（2）利用拠点内の写真撮影許可　（3）お客さまによる設定等の確認（機器等の操作）  \n　　（4）当社作業用PC等の接続（IPアドレスを利用させていただく場合がございます）\n　　（5）弊社が依頼するアンケートの回答　（6）当社の求めに応じたＩＤやパスワード等の入力\n　　（7)当社の求めに応じた本作業のために必要な情報（操作説明書等を含みます。）の提供\n　　（8）依頼内容と環境が大幅に異なる場合\n\n（２）本作業における免責事項について\n　　○本作業をご利用になったお客様における、以下に該当する損害については免責事項とし、当社は一切責任を負いません。\n　　　　・お客様の機器（PC、電話機、サーバ等）及び備品の破損やデータの喪失や損傷、その他本作業により生じた損害\n　　　　・本作業により第三者に対して与えた損害\n　　　　・当社の責に帰することのできない事由から生じた損害\n　　　　・当社の予見の有無を問わず特別の事情から生じた損害\n　　　　・本作業の提供に伴う逸失利益および第三者からの損害賠償請求に基づいて発生した契約者の損害\n\n（３）お客さま情報の利用目的に関するご案内について\n　　〇本サービス提供のため、本サービスの提供の過程において契約者の氏名、住所、電話番号、メールアドレス（以下「個人情報」といいます。）を取得します。また、本サービスにおける診断レポートの提供にあたり、下記に規定する情報を取得します。\n　　(1)利用中のハードウェアに関する情報\n　　　　メーカー、型番、導入時期、導入ベンダ情報、性能（無線・有線対応規格、ループ検知機能有無　等）\n　　　　※ハードウェア：パソコン、サーバ、ルータ、スイッチングハブ、UTM無線アクセスポイント、ネットワークカメラ、複合機　等\n　　(2)利用中のOS、ソフトウェアに関する情報\n　　　 OSバージョン、ウイルス対策ソフトの導入状況等\n　　(3)ネットワーク構成図\n　　(4)フロア平面図\n　　(5)機器設置場所環境を確認できる写真\n　　(6)Wi-Fi電波強度\n　　(7)スピードテスト結果（複数個所）\n　　(8)IT管理者有無の情報、保守体制に関する情報\n　　(9)IT投資計画に関する情報\n　　(10)セキュリティ対策、運用状況に関する情報\n　　　 セキュリティパッチ適用状況、ファームウェアアップデート状況、クラウドサービスの共有設定、無線LAN暗号化規格、パスワード\n　　　管理ポリシー、メール送受信対策　等\n　　〇前項の規定により取得した情報については、当社が別に定める｢プライバシーポリシー｣に基づき取り扱うものとします。\n　　　なお、本規約と当該プライバシーポリシーに齟齬がある場合、本規約の定めが優先して適用されるものとします。\n　　〇当社が提供する役務又は販売する商品等の紹介、提案及びコンサルティングに必要となる範囲内で、取得した情報を\n　　　利用する場合があります。なお、本サービスの提供完了後も、目的達成に必要な範囲内でこれらの情報を利用する\n　　　場合があります。\n　　〇当社は、個人情報保護法の規定に基づき、取得した情報を当社が業務を委託する他の事業者に対して\n　　　提供することがあります。\n　　〇契約者は、当社が請求事業者に債権を譲渡する場合において、当社がその契約者の氏名、住所及び本サービスに係る\n　　　連絡先電話番号等、料金の請求に必要となる情報並びに金融機関の口座番号、クレジットカードのカード会員番号\n　　　及び本サービスの利用を停止している場合はその内容等、料金の回収のために必要となる情報を請求事業者に\n　　　通知する場合があることについて、同意していただきます。\n　　〇契約者は、当社が請求事業者に債権を譲渡する場合において、請求事業者が本サービスに係る債権に関して料金が\n　　　支払われた等の情報を当社に通知する場合があることについて、同意していただきます。\n　　〇契約者が法人等の団体である場合における当該契約者の法人情報についても、前各項の規定と同様に扱うこととします。\n　　〇本調査を実施するにあたり、「ITサポート＆セキュリティ利用規約」の内容を確認のうえ、同意の基に実施することとします。\n\n（４）本作業における報告書の留意事項について\n　　○本作業における報告書は、本作業実施時点で入手した情報をもとに当社の技術者の判断に基づいて作成します。\n　　　 従って、実際のネットワーク状況は報告書と異なる場合があります。\n　　○本作業における報告書をご利用になった契約者における、以下の各号に該当する損害については免責事項とし、\n       当社は一切責任を負いません。\n　　　　・本報告書をもとにした行為により第三者に対して与えた損害\n　　　　・当社の責に帰することのできない事由から生じた損害\n　　　　・当社の予見の有無を問わず特別の事情から生じた損害\n　　　　・本報告書をもとにした行為に伴う逸失利益および第三者からの損害賠償請求に基づいて発生した契約者の損害"]
[]
[]
[]
[]
[]
[]
[]
[]
[]
[]
[]
[]
[]
[]
[]
[]
[]
[]
[]
[]
[]
[]
[]
[]
[]
[]
[]
[]
[]
[]
[]
[]
[]
[]
[]
[]
[]
[]
[]
[null,null,null,null,"上記事項に関して、承諾しました",null,null,null,null,null,null,null,null,null,null,null,"□",null,null,null,null,null,null,null,null,null,null,null,null,null,null,null,null,null,null,"西暦",null,null,null,null,"年",null,null,null,"月",null,null,null,"日"]
[null,null,null,null,"住所",null,null,null,null,"〒",null,null,null,null,"-",null,null,null,null,null,null,null,null,"県",null,null,null,null,null,null,null,null,null,"市"]
[]
[null,null,null,null,"電話番号"]
[null,null,null,null,"会社名"]
[]
[null,null,null,null,"氏名"]

{"sheet":"事前アンケート（セキュリティ）","index":5,"n_rows":26,"n_cols":11,"rows_kept":26,"cut":false,"hidden":false,"merged":[[1,1,2,5],[5,2,13,2],[24,10,25,10],[3,1,3,5],[5,10,13,10],[15,10,17,10],[18,10,19,10],[20,10,21,10],[22,10,23,10],[22,2,23,2],[24,2,25,2],[15,2,17,2],[18,2,19,2],[20,2,21,2]]}
[]
[null,"Ｎにおまかせ！ITサポート　診断プラン　ICT診断お客様アンケート（セキュリティ）"]
[]
[null,"診断にあたり、現在の状況をヒアリングさせていただきたく、以下21問のアンケートにご回答の程、宜しくお願いします。\nピンク色の回答欄について、ご回答宜しくお願いします。（回答済箇所は白色になります・任意箇所が空欄の場合「わからない」と回答された場合と同様の扱いとなります）"]
[null,"No.","項目","質問内容","回答欄","必須項目",null,null,"データソース","投入者","ヒアリングNo."]
[null,1,"ウイルス対策ソフトの導入・運用","PC端末に関してお伺いします。ウイルス対策ソフトを利用していますか？\n※ウイルス対策ソフト…コンピューターをウイルスから守るためのソフトウェア",null,"●",null,null,"アンケート","レポート作成担当",2]
[null,2,null,"今、お使いのウイルス対策ソフトに関して、満了時期を教えてください。\n(記入例) 期限ありの場合：2024/4　期限なしの場合：なし　",null,"▲\n任意\n(グレーアウト時は記入不要)",null,null,"アンケート","レポート作成担当"]
[null,3,null,"今、お使いのウイルス対策ソフトに関して、契約形態を教えてください。",null,"▲\n任意",null,null,"アンケート","レポート作成担当"]
[null,4,null,"PC端末に関してお伺いします。EDRソリューションを利用していますか？\n※EDRソリューション…コンピュータの不審な活動をリアルタイムで検出し、マルウェアの侵入・感染後の対処を行うセキュリティソリューション",null,"●",null,null,"アンケート","レポート作成担当"]
[null,5,null,"今、お使いのEDRソリューション名を教えてください。 ",null,"●\nグレーアウト時は記入不要",null,null,"アンケート","レポート作成担当"]
[null,6,null,"今、お使いのEDRソリューションに関して、満了時期を教えてください。\n(記入例) 期限ありの場合：2024/4　期限なしの場合：なし",null,"▲\n任意\nグレーアウト時は記入不要",null,null,"アンケート","レポート作成担当"]
[null,7,null,"今、お使いのEDRソリューションに関して、契約形態を教えてください。",null,"▲\n任意",null,null,"アンケート","レポート作成担当"]
[null,8,null,"ウイルス対策ソフト、EDRソリューションに関し、定期的にセキュリティパッチの適用を実施していますか？\nセキュリティパッチ…ソフトウェアの脆弱性を修正し、最新の脅威から守るための更新プログラム",null,"●",null,null,"アンケート","レポート作成担当"]
[null,9,null,"万が一、ウイルス感染した際に対応が可能な体制はありますか？\n(記入例) 社内のIT管理部門で実施したり、外部のITベンダ・セキュリティベンダへ依頼したりする場合：あり　決まっていない場合：なし",null,"●",null,null,"アンケート","レポート作成担当"]
[null,10,"UTMの導入・運用","UTMに関して、定期的にセキュリティパッチの適用を行っていますか？\nセキュリティパッチ…ソフトウェアの脆弱性を修正し、最新の脅威から守るための更新プログラム",null,"●",null,null,"アンケート","レポート作成担当"]
[null,11,"Wi-Fiの初期設定変更","社内で無線ルータをご利用されている方にお伺いします。普段利用されるSSIDは初期値より更新されておりますか？\nSSID…Wi-Fiに接続するときに表示される名前のこと",null,"▲\n任意",null,null,"アンケート","レポート作成担当",4]
[null,12,null,"Wi-Fiに接続するときのパスワードは初期値なのか、お客様が変更して設定したものなのか教えてください。",null,"▲\n任意",null,null,"アンケート","レポート作成担当"]
[null,13,null,"設定しているパスワードは以下を満たしたものを設定しておりますか？\n　・最低でも10文字以上の文字数で構成されている。\n　・パスワードの中に数字や、「@」、「%」、「\"」などの記号も混ぜている。\n　・パスワード内のアルファベットに大文字と小文字の両方を入れている。\n　・サービスごとに違うパスワードを設定している。",null,"▲\n任意",null,null,"アンケート","レポート作成担当"]
[null,14,"パスワードの管理ポリシー","貴社の社内ルールとして、パスワードの管理ポリシーは設定されてますか？\nパスワード管理ポリシー…強固なパスワードの設定や定期的な変更を促進するルール",null,"●",null,null,"アンケート","レポート作成担当",5]
[null,15,null,"設定している管理ポリシーは従業員へ展開されておりますか？",null,"●",null,null,"アンケート","レポート作成担当"]
[null,16,"社内共有設定","ネットワーク接続した複合機やNAS、クラウドストレージ等のクラウドサービス、グループウェアのアクセス権限を設定していますか？\nNAS…ネットワークに接続可能なファイルを保存する機器\nアクセス権限設定…重要なデータへの不正アクセスを防ぐための設定",null,"●",null,null,"アンケート","レポート作成担当",6]
[null,17,null,"設定したアクセス権限は定期的に見直しを実施していますか？",null,"●",null,null,"アンケート","レポート作成担当"]
[null,18,"セキュリティ情報収集・周知","新たなセキュリティ脅威や攻撃の手口に関する情報収集しておりますか？",null,"●",null,null,"アンケート","レポート作成担当",7]
[null,19,null,"管理者から従業員に対して、情報セキュリティに関して、注意喚起する取り組みを実施していますか？",null,"●",null,null,"アンケート","レポート作成担当"]
[null,20,"電子メール","実施している【受信メール対策】があれば、内容を教えてください。",null,"▲\n任意",null,null,"アンケート","レポート作成担当",10]
[null,21,null,"実施している【送信メール対策】があれば、内容を教えてください。",null,"▲\n任意",null,null,"アンケート","レポート作成担当"]

{"sheet":"事前アンケート（LANパフォーマンス）","index":6,"n_rows":12,"n_cols":10,"rows_kept":12,"cut":false,"hidden":false,"merged":[[5,9,6,9],[7,9,8,9],[10,9,11,9],[1,1,2,5],[3,1,3,5],[10,2,11,2],[5,2,6,2],[7,2,8,2]]}
[]
[null,"Ｎにおまかせ！ITサポート 診断プラン ICT診断お客様アンケート（LANパフォーマンス）"]
[]
[null,"診断にあたり、現在の状況をヒアリングさせていただきたく、以下7問のアンケートにご回答の程、宜しくお願いします。\nピンク色の回答欄について、ご回答宜しくお願いします。（回答済箇所は白色になります）"]
[null,"No.","項目","質問内容","回答欄","必須項目",null,"データソース","投入者","ヒアリングシートNo."]
[null,1,"保守ベンダ","NWに関して、保守ベンダはいますか？",null,"●",null,"アンケート","レポート作成担当",9]
[null,2,null,"保守ベンダ名を教えてください。",null,"グレーアウト時は記入不要",null,"アンケート","レポート作成担当"]
[null,3,"IT管理者","貴社のNW、機器等を管理するIT管理者はいますか？（専任・兼務・いない）",null,"●",null,"アンケート","レポート作成担当",10]
[null,4,null,"また、「いる」と回答した方はどの部署の方が担当されているか教えてください。",null,"▲\n任意",null,"アンケート","レポート作成担当"]
[null,5,"IT投資の計画","IT機器関連の投資に関して、計画的に予算を取得していますか？（毎年・随時・取得していない）",null,"●",null,"アンケート","レポート作成担当",11]
[null,6,"24時間業務有無","24時間稼働の業務はありますか？",null,"●",null,"アンケート","レポート作成担当",12]
[null,7,null,"24時間業務があると回答した方にお伺いします。\nネットワークに関して夜間のトラブルが発生した際に対応できる保守体制は整っておりますか？",null,"●",null,"アンケート","レポート作成担当"]

{"sheet":"入館申請","index":7,"n_rows":14,"n_cols":4,"rows_kept":14,"cut":false,"hidden":false,"merged":[[13,1,13,2],[1,1,2,3],[4,1,4,2],[5,1,8,1],[9,1,12,1]]}
[null,null,null,"NTT EAST CONFIDENTIAL\n【提示先：貴社に限る】"]
[null,"訪問時に作業者の事前申請が必要な場合下記を記入願います"]
[]
[]
[null,"入館申請方法"]
[null,"メール","入館申請資料"]
[null,null,"入館申請資料記入例"]
[null,null,"申請先アドレス"]
[null,null,"宛名"]
[null,"WEB","入館申請記入例"]
[null,null,"URL"]
[null,null,"ID"]
[null,null,"パスワード"]
[null,"備考"]

{"sheet":"調査実施後⇒","index":8,"n_rows":0,"n_cols":0,"rows_kept":0,"cut":false,"hidden":true,"merged":[]}

{"sheet":"プルダウン","index":9,"n_rows":30,"n_cols":37,"rows_kept":30,"cut":false,"hidden":true,"merged":[]}
["※「7.機器情報」プルダウン用"]
[null,null,"24時間業務有無",null,null,null,null,"パスワード管理ポリシー",null,null,null,null,"アクセス権限",null,null,null,null,"ウイルス対策ソフト",null,null,null,null,"UTM",null,null,null,null,"定期的なセキュリティパッチ"]
["項目",null,null,"24業務ありの場合","24業務なしの場合","わからない",null,null,"設定している","設定していない","わからない",null,null,"設定をしている","設定をしていない","わからない",null,null,"利用中","未利用","わからない",null,null,"あり","なし","わからない",null,null,"利用中利用中","利用中未利用","利用中わからない","未利用利用中","未利用未利用","未利用わからない","わからない利用中","わからない未利用","わからないわからない"]
["ONU",null,"ある","はい","-","-",null,"設定している","展開している","-","-",null,"設定している","見直しをしている","-","-",null,"利用中","売り切り（一括支払）","-","-",null,"あり","実施","-","-",null,"実施","実施","実施","実施","実施","-","-","実施","-","-"]
["一体型ひかり電話ルータ",null,"ない","いいえ",null,null,null,"設定していない","展開していない",null,null,null,"設定していない","見直しをしていない",null,null,null,"未利用","サブスクリプション（毎月支払）",null,null,null,"なし","未実施",null,null,null,"未実施","未実施","未実施","未実施","未実施",null,null,"未実施"]
["VoIPゲートウェイ",null,"わからない","わからない",null,null,null,"分からない","わからない",null,null,null,"分からない","わからない",null,null,null,"わからない","わからない",null,null,null,"わからない","わからない",null,null,null,"わからない","わからない","わからない","わからない","わからない",null,null,"わからない"]
["VDSLモデム"]
["有線ルータ"]
["無線ルータ"]
["無線AP"]
["デスクトップPC"]
["ノートPC"]
["ADSLモデム"]
["HUB"]
["給電HUB"]
["FAX"]
["複合機"]
["プリンタ"]
["スキャナー"]
["UTM"]
["FW"]
["カメラ"]
["ビジネスホン主装置"]
["物理サーバ"]
["VPNルータ（CPE）"]
["CAT端末"]
["無停電装置（UPS）"]
["外付HD"]
["タイムカード"]
["その他"]

{"sheet":"1.ネットワーク構成図","index":10,"n_rows":2,"n_cols":85,"rows_kept":2,"cut":false,"hidden":true,"merged":[[0,84,0,96],[1,1,2,96]]}
[null,null,null,null,null,null,null,null,null,null,null,null,null,null,null,null,null,null,null,null,null,null,null,null,null,null,null,null,null,null,null,null,null,null,null,null,null,null,null,null,null,null,null,null,null,null,null,null,null,null,null,null,null,null,null,null,null,null,null,null,null,null,null,null,null,null,null,null,null,null,null,null,null,null,null,null,null,null,null,null,null,null,null,null,"NTT EAST CONFIDENTIAL\n【提示先：貴社に限る】"]
[null,"1. ネットワーク構成図"]

{"sheet":"2.平面図","index":11,"n_rows":2,"n_cols":85,"rows_kept":2,"cut":false,"hidden":true,"merged":[[0,84,0,96],[1,1,2,96]]}
[null,null,null,null,null,null,null,null,null,null,null,null,null,null,null,null,null,null,null,null,null,null,null,null,null,null,null,null,null,null,null,null,null,null,null,null,null,null,null,null,null,null,null,null,null,null,null,null,null,null,null,null,null,null,null,null,null,null,null,null,null,null,null,null,null,null,null,null,null,null,null,null,null,null,null,null,null,null,null,null,null,null,null,null,"NTT EAST CONFIDENTIAL\n【提示先：貴社に限る】"]
[null,"2. 平面図"]

{"sheet":"3.機器情報","index":12,"n_rows":508,"n_cols":25,"rows_kept":508,"cut":false,"hidden":true,"merged":[[3,10,3,14],[3,16,3,20],[4,3,4,14],[4,16,4,24],[5,16,5,23]]}
[]
[]
[]
[null,null,null,null,null,null,null,null,null,null,"NTT EAST CONFIDENTIAL\n【提示先：貴社に限る】",null,null,null,null,null,"オンサイトにて記入必須"]
[null,null,null,"3. 機器情報",null,null,null,null,null,null,null,null,null,null,null,null,"チェックリスト"]
[null,null,null,null,null,null,null,null,null,null,null,null,null,null,null,null,"写真撮影結果"]
[null,null,null,"機器ナンバー","機器種別    ","メーカー","型番","導入年月","導入ベンダ","導入形態\n（お買い上げ、リース、レンタル）","リース・\nレンタル満了時期","無線対応規格","有線対応規格","ループ検知機能","保守サポート終了時期","列1","①機器全景\n（ランプ・設置場所）","②機器背面\n（ランプやポート収容状況）","③機器前面\n（ステータスランプ等）","④ラベル\n（製造番号・ベンダ）","⑤落下リスク","⑥水濡れリスク","⑦床置リスク","⑧熱リスク","調査不可理由（写真撮影不可も含む）"]
[null,null,null,"例","回線終端装置","NTT東日本","abc12345678","2019-02-01","NTT東日本","レンタル","2029-03-01","11ac","1000BASE","〇",{"$f":"EDATE(TODAY(),12)","v":"2025-10-22"},null,"○","撮影不可","○","○","○","○","○","○","②当該機器が壁に張り付けられており、背面が撮影できなかったため、⑤当該機器に保守契約情報が記載されたシールが張っていなかったため"]
[null,null,null,"001"]
[null,null,null,"002"]
[null,null,null,"003"]
[null,null,null,"004"]
[null,null,null,"005"]
[null,null,null,"006"]
[null,null,null,"007"]
[null,null,null,"008"]
[null,null,null,"009"]
[null,null,null,"010"]
[null,null,null,"011"]
[null,null,null,"012"]
[null,null,null,"013"]
[null,null,null,"014"]
[null,null,null,"015"]
[null,null,null,"016"]
[null,null,null,"017"]
[null,null,null,"018"]
[null,null,null,"019"]
[null,null,null,"020"]
[null,null,null,"021"]
[null,null,null,"022"]
[null,null,null,"023"]
[null,null,null,"024"]
[null,null,null,"025"]
[null,null,null,"026"]
[null,null,null,"027"]
[null,null,null,"028"]
[null,null,null,"029"]
[null,null,null,"030"]
[null,null,null,"031"]
[null,null,null,"032"]
[null,null,null,"033"]
[null,null,null,"034"]
[null,null,null,"035"]
[null,null,null,"036"]
[null,null,null,"037"]
[null,null,null,"038"]
[null,null,null,"039"]
[null,null,null,"040"]
[null,null,null,"041"]
[null,null,null,"042"]
[null,null,null,"043"]
[null,null,null,"044"]
[null,null,null,"045"]
[null,null,null,"046"]
[null,null,null,"047"]
[null,null,null,"048"]
[null,null,null,"049"]
[null,null,null,"050"]
[null,null,null,"051"]
[null,null,null,"052"]
[null,null,null,"053"]
[null,null,null,"054"]
[null,null,null,"055"]
[null,null,null,"056"]
[null,null,null,"057"]
[null,null,null,"058"]
[null,null,null,"059"]
[null,null,null,"060"]
[null,null,null,"061"]
[null,null,null,"062",null,null,""]
[null,null,null,"063",null,null,""]
[null,null,null,"064",null,null,""]
[null,null,null,"065",null,null,""]
[null,null,null,"066",null,null,""]
[null,null,null,"067",null,null,""]
[null,null,null,"068",null,null,""]
[null,null,null,"069"]
[null,null,null,"070"]
[null,null,null,"071"]
[null,null,null,"072"]
[null,null,null,"073"]
[null,null,null,"074"]
[null,null,null,"075"]
[null,null,null,"076"]
[null,null,null,"077"]
[null,null,null,"078"]
[null,null,null,"079"]
[null,null,null,"080"]
[null,null,null,"081"]
[null,null,null,"082"]
[null,null,null,"083"]
[null,null,null,"084"]
[null,null,null,"085"]
[null,null,null,"086"]
[null,null,null,"087"]
[null,null,null,"088"]
[null,null,null,"089"]
[null,null,null,"090"]
[null,null,null,"091"]
[null,null,null,"092"]
[null,null,null,"093"]
[null,null,null,"094"]
[null,null,null,"095"]
[null,null,null,"096"]
[null,null,null,"097"]
[null,null,null,"098"]
[null,null,null,"099"]
[null,null,null,"100"]
[null,null,null,"101"]
[null,null,null,"102"]
[null,null,null,"103"]
[null,null,null,"104"]
[null,null,null,"105"]
[null,null,null,"106"]
[null,null,null,"107"]
[null,null,null,"108"]
[null,null,null,"109"]
[null,null,null,"110"]
[null,null,null,"111"]
[null,null,null,"112"]
[null,null,null,"113"]
[null,null,null,"114"]
[null,null,null,"115"]
[null,null,null,"116"]
[null,null,null,"117"]
[null,null,null,"118"]
[null,null,null,"119"]
[null,null,null,"120"]
[null,null,null,"121"]
[null,null,null,"122"]
[null,null,null,"123"]
[null,null,null,"124"]
[null,null,null,"125"]
[null,null,null,"126"]
[null,null,null,"127"]
[null,null,null,"128"]
[null,null,null,"129"]
[null,null,null,"130"]
[null,null,null,"131"]
[null,null,null,"132"]
[null,null,null,"133"]
[null,null,null,"134"]
[null,null,null,"135"]
[null,null,null,"136"]
[null,null,null,"137"]
[null,null,null,"138"]
[null,null,null,"139"]
[null,null,null,"140"]
[null,null,null,"141"]
[null,null,null,"142"]
[null,null,null,"143"]
[null,null,null,"144"]
[null,null,null,"145"]
[null,null,null,"146"]
[null,null,null,"147"]
[null,null,null,"148"]
[null,null,null,"149"]
[null,null,null,"150"]
[null,null,null,"151"]
[null,null,null,"152"]
[null,null,null,"153"]
[null,null,null,"154"]
[null,null,null,"155"]
[null,null,null,"156"]
[null,null,null,"157"]
[null,null,null,"158"]
[null,null,null,"159"]
[null,null,null,"160"]
[null,null,null,"161"]
[null,null,null,"162"]
[null,null,null,"163"]
[null,null,null,"164"]
[null,null,null,"165"]
[null,null,null,"166"]
[null,null,null,"167"]
[null,null,null,"168"]
[null,null,null,"169"]
[null,null,null,"170"]
[null,null,null,"171"]
[null,null,null,"172"]
[null,null,null,"173"]
[null,null,null,"174"]
[null,null,null,"175"]
[null,null,null,"176"]
[null,null,null,"177"]
[null,null,null,"178"]
[null,null,null,"179"]
[null,null,null,"180"]
[null,null,null,"181"]
[null,null,null,"182"]
[null,null,null,"183"]
[null,null,null,"184"]
[null,null,null,"185"]
[null,null,null,"186"]
[null,null,null,"187"]
[null,null,null,"188"]
[null,null,null,"189"]
[null,null,null,"190"]
[null,null,null,"191"]
[null,null,null,"192"]
[null,null,null,"193"]
[null,null,null,"194"]
[null,null,null,"195"]
[null,null,null,"196"]
[null,null,null,"197"]
[null,null,null,"198"]
[null,null,null,"199"]
[null,null,null,"200"]
[null,null,null,"201"]
[null,null,null,"202"]
[null,null,null,"203"]
[null,null,null,"204"]
[null,null,null,"205"]
[null,null,null,"206"]
[null,null,null,"207"]
[null,null,null,"208"]
[null,null,null,"209"]
[null,null,null,"210"]
[null,null,null,"211"]
[null,null,null,"212"]
[null,null,null,"213"]
[null,null,null,"214"]
[null,null,null,"215"]
[null,null,null,"216"]
[null,null,null,"217"]
[null,null,null,"218"]
[null,null,null,"219"]
[null,null,null,"220"]
[null,null,null,"221"]
[null,null,null,"222"]
[null,null,null,"223"]
[null,null,null,"224"]
[null,null,null,"225"]
[null,null,null,"226"]
[null,null,null,"227"]
[null,null,null,"228"]
[null,null,null,"229"]
[null,null,null,"230"]
[null,null,null,"231"]
[null,null,null,"232"]
[null,null,null,"233"]
[null,null,null,"234"]
[null,null,null,"235"]
[null,null,null,"236"]
[null,null,null,"237"]
[null,null,null,"238"]
[null,null,null,"239"]
[null,null,null,"240"]
[null,null,null,"241"]
[null,null,null,"242"]
[null,null,null,"243"]
[null,null,null,"244"]
[null,null,null,"245"]
[null,null,null,"246"]
[null,null,null,"247"]
[null,null,null,"248"]
[null,null,null,"249"]
[null,null,null,"250"]
[null,null,null,"251"]
[null,null,null,"252"]
[null,null,null,"253"]
[null,null,null,"254"]
[null,null,null,"255"]
[null,null,null,"256"]
[null,null,null,"257"]
[null,null,null,"258"]
[null,null,null,"259"]
[null,null,null,"260"]
[null,null,null,"261"]
[null,null,null,"262"]
[null,null,null,"263"]
[null,null,null,"264"]
[null,null,null,"265"]
[null,null,null,"266"]
[null,null,null,"267"]
[null,null,null,"268"]
[null,null,null,"269"]
[null,null,null,"270"]
[null,null,null,"271"]
[null,null,null,"272"]
[null,null,null,"273"]
[null,null,null,"274"]
[null,null,null,"275"]
[null,null,null,"276"]
[null,null,null,"277"]
[null,null,null,"278"]
[null,null,null,"279"]
[null,null,null,"280"]
[null,null,null,"281"]
[null,null,null,"282"]
[null,null,null,"283"]
[null,null,null,"284"]
[null,null,null,"285"]
[null,null,null,"286"]
[null,null,null,"287"]
[null,null,null,"288"]
[null,null,null,"289"]
[null,null,null,"290"]
[null,null,null,"291"]
[null,null,null,"292"]
[null,null,null,"293"]
[null,null,null,"294"]
[null,null,null,"295"]
[null,null,null,"296"]
[null,null,null,"297"]
[null,null,null,"298"]
[null,null,null,"299"]
[null,null,null,"300"]
[null,null,null,"301"]
[null,null,null,"302"]
[null,null,null,"303"]
[null,null,null,"304"]
[null,null,null,"305"]
[null,null,null,"306"]
[null,null,null,"307"]
[null,null,null,"308"]
[null,null,null,"309"]
[null,null,null,"310"]
[null,null,null,"311"]
[null,null,null,"312"]
[null,null,null,"313"]
[null,null,null,"314"]
[null,null,null,"315"]
[null,null,null,"316"]
[null,null,null,"317"]
[null,null,null,"318"]
[null,null,null,"319"]
[null,null,null,"320"]
[null,null,null,"321"]
[null,null,null,"322"]
[null,null,null,"323"]
[null,null,null,"324"]
[null,null,null,"325"]
[null,null,null,"326"]
[null,null,null,"327"]
[null,null,null,"328"]
[null,null,null,"329"]
[null,null,null,"330"]
[null,null,null,"331"]
[null,null,null,"332"]
[null,null,null,"333"]
[null,null,null,"334"]
[null,null,null,"335"]
[null,null,null,"336"]
[null,null,null,"337"]
[null,null,null,"338"]
[null,null,null,"339"]
[null,null,null,"340"]
[null,null,null,"341"]
[null,null,null,"342"]
[null,null,null,"343"]
[null,null,null,"344"]
[null,null,null,"345"]
[null,null,null,"346"]
[null,null,null,"347"]
[null,null,null,"348"]
[null,null,null,"349"]
[null,null,null,"350"]
[null,null,null,"351"]
[null,null,null,"352"]
[null,null,null,"353"]
[null,null,null,"354"]
[null,null,null,"355"]
[null,null,null,"356"]
[null,null,null,"357"]
[null,null,null,"358"]
[null,null,null,"359"]
[null,null,null,"360"]
[null,null,null,"361"]
[null,null,null,"362"]
[null,null,null,"363"]
[null,null,null,"364"]
[null,null,null,"365"]
[null,null,null,"366"]
[null,null,null,"367"]
[null,null,null,"368"]
[null,null,null,"369"]
[null,null,null,"370"]
[null,null,null,"371"]
[null,null,null,"372"]
[null,null,null,"373"]
[null,null,null,"374"]
[null,null,null,"375"]
[null,null,null,"376"]
[null,null,null,"377"]
[null,null,null,"378"]
[null,null,null,"379"]
[null,null,null,"380"]
[null,null,null,"381"]
[null,null,null,"382"]
[null,null,null,"383"]
[null,null,null,"384"]
[null,null,null,"385"]
[null,null,null,"386"]
[null,null,null,"387"]
[null,null,null,"388"]
[null,null,null,"389"]
[null,null,null,"390"]
[null,null,null,"391"]
[null,null,null,"392"]
[null,null,null,"393"]
[null,null,null,"394"]
[null,null,null,"395"]
[null,null,null,"396"]
[null,null,null,"397"]
[null,null,null,"398"]
[null,null,null,"399"]
[null,null,null,"400"]
[null,null,null,"401"]
[null,null,null,"402"]
[null,null,null,"403"]
[null,null,null,"404"]
[null,null,null,"405"]
[null,null,null,"406"]
[null,null,null,"407"]
[null,null,null,"408"]
[null,null,null,"409"]
[null,null,null,"410"]
[null,null,null,"411"]
[null,null,null,"412"]
[null,null,null,"413"]
[null,null,null,"414"]
[null,null,null,"415"]
[null,null,null,"416"]
[null,null,null,"417"]
[null,null,null,"418"]
[null,null,null,"419"]
[null,null,null,"420"]
[null,null,null,"421"]
[null,null,null,"422"]
[null,null,null,"423"]
[null,null,null,"424"]
[null,null,null,"425"]
[null,null,null,"426"]
[null,null,null,"427"]
[null,null,null,"428"]
[null,null,null,"429"]
[null,null,null,"430"]
[null,null,null,"431"]
[null,null,null,"432"]
[null,null,null,"433"]
[null,null,null,"434"]
[null,null,null,"435"]
[null,null,null,"436"]
[null,null,null,"437"]
[null,null,null,"438"]
[null,null,null,"439"]
[null,null,null,"440"]
[null,null,null,"441"]
[null,null,null,"442"]
[null,null,null,"443"]
[null,null,null,"444"]
[null,null,null,"445"]
[null,null,null,"446"]
[null,null,null,"447"]
[null,null,null,"448"]
[null,null,null,"449"]
[null,null,null,"450"]
[null,null,null,"451"]
[null,null,null,"452"]
[null,null,null,"453"]
[null,null,null,"454"]
[null,null,null,"455"]
[null,null,null,"456"]
[null,null,null,"457"]
[null,null,null,"458"]
[null,null,null,"459"]
[null,null,null,"460"]
[null,null,null,"461"]
[null,null,null,"462"]
[null,null,null,"463"]
[null,null,null,"464"]
[null,null,null,"465"]
[null,null,null,"466"]
[null,null,null,"467"]
[null,null,null,"468"]
[null,null,null,"469"]
[null,null,null,"470"]
[null,null,null,"471"]
[null,null,null,"472"]
[null,null,null,"473"]
[null,null,null,"474"]
[null,null,null,"475"]
[null,null,null,"476"]
[null,null,null,"477"]
[null,null,null,"478"]
[null,null,null,"479"]
[null,null,null,"480"]
[null,null,null,"481"]
[null,null,null,"482"]
[null,null,null,"483"]
[null,null,null,"484"]
[null,null,null,"485"]
[null,null,null,"486"]
[null,null,null,"487"]
[null,null,null,"488"]
[null,null,null,"489"]
[null,null,null,"490"]
[null,null,null,"491"]
[null,null,null,"492"]
[null,null,null,"493"]
[null,null,null,"494"]
[null,null,null,"495"]
[null,null,null,"496"]
[null,null,null,"497"]
[null,null,null,"498"]
[null,null,null,"499"]
[null,null,null,"500"]

{"sheet":"4.調査シート（LANパフォーマンス）","index":13,"n_rows":17,"n_cols":7,"rows_kept":17,"cut":false,"hidden":true,"merged":[[1,1,2,6],[7,1,12,1],[7,2,12,2],[14,3,15,3]]}
[]
[null,"4.LANパフォーマンス項目　オンサイトヒアリングシート"]
[]
[]
[null,"No.","項目","具体的な調査方法","回答欄","データソース","投入者"]
[null,2,"NW機器の設置環境","水害、落下、日光、ホコリ等写真よりリスクがあると判定可能な項目についてリスクを記載する。\nリスクのある箇所については、「（保守契約情報・写真）チェックリスト」の写真撮影結果にチェックをつけること。",null,"目視確認","現場調査者"]
[null,7,"Wi-Fi電波状況","無線LANテスタを活用して、Wi-Fi電波調査を実施する。",null,"機器操作","現場調査者"]
[null,8,"スループット状況","①スピードテストサイトでの調査【調査箇所①】\n測定した機器名を記載してください。\n(機器情報シートの機器ナンバー一覧から当てはまるものを選択)\n※お客様から測定箇所の指定があった場合は、測定した機器を記載すること",null,"機器操作","現場調査者"]
[null,null,null,"①スピードテストサイトでの調査【調査箇所①】\n以下サイトへアクセスし、速度を計測する。(対象無の場合は記入不要)\nURL：https://fast.com/ja/",null,"機器操作","現場調査者"]
[null,null,null,"②スピードテストサイトでの調査【調査箇所②】\n測定した機器名を記載してください。\n(機器情報シートの機器ナンバー一覧から当てはまるものを選択)\n※お客様から測定箇所の指定があった場合は、測定した機器を記載すること",null,"機器操作","現場調査者"]
[null,null,null,"②スピードテストサイトでの調査【調査箇所②】\n以下サイトへアクセスし、速度を計測する。(対象無の場合は記入不要)\nURL：https://fast.com/ja/",null,"機器操作","現場調査者"]
[null,null,null,"③スピードテストサイトでの調査【調査箇所③】\n測定した機器名を記載してください。\n(機器情報シートの機器ナンバー一覧から当てはまるものを選択)\n※お客様から測定箇所の指定があった場合は、測定した機器を記載すること",null,"機器操作","現場調査者"]
[null,null,null,"③スピードテストサイトでの調査【調査箇所③】\n以下サイトへアクセスし、速度を計測する。(対象無の場合は記入不要)\nURL：https://fast.com/ja/",null,"機器操作","現場調査者"]
[null,13,"WANIP","”CMAN”サイトにアクセスし、WANIPを確認する。\nhttps://www.cman.jp/network/support/go_access.cgi/\n\n詳細は以下を参照\nビジネス系デリバリ業務実施マニュアル　～テクニカル編～\nルータ　1-5-2. WAN側ネットワークの調査",null,"機器操作","現場調査者"]
[null,14,"LANIP","LANIP、サブネットに関しては同一対応\n① 「Windows」キー＋「R」を押下し、“ファイル名を指定して実行”画面を表示させる。\n② “ncpa.cpl”を入力し、「Enter」キーを押下する。\n③ “ネットワーク接続”画面が表示されるので、「右クリック」\n④ 「プロパティ（R)」をクリックすると“イーサネットのプロパティ”のポップアップが表示される。\n⑤ 「インターネットプロトコルバージョン４」を選択\n⑥ 「プロパティ（R)」をクリックする。\n⑦ “インターネットプロトコルバージョン４のプロパティ”のポップアップが表示される\n⑧ 情報を確認し、メモを取る。\n\n詳細は以下を参照\nビジネス系デリバリ業務実施マニュアル\n～テクニカル編～\nルータ1-5-1. LAN側ネットワークの調査　を参照",null,"機器操作","現場調査者"]
[null,15,"サブネット",null,null,"機器操作","現場調査者"]
[null,16,"上記測定端末","上記項番13,14,15を測定した機器を記載してください。",null,"機器操作","現場調査者"]

{"sheet":"5.調査シート（セキュリティ）","index":14,"n_rows":11,"n_cols":7,"rows_kept":11,"cut":false,"hidden":true,"merged":[[1,1,2,6],[5,21,5,24],[8,2,9,2],[8,1,9,1]]}
[]
[null,"5.セキュリティ項目　オンサイトヒアリングシート"]
[]
[]
[null,"No.","項目","具体的な調査方法","回答欄","データソース","投入者"]
[null,1,"OSアップデート","直接お客様の端末（代表1台）を操作しOSの状況を確認する。\n\n（例）Window10 の場合\n１．スタートメニューを開く: 左下のWindowsロゴをクリック\n２．設定に移動: スタートメニュー内で歯車のアイコンをクリック\u000b\n３．「更新とセキュリティ」を選択: 設定ウィンドウ内で\n      「更新とセキュリティ」をクリック\n４．Windows Updateを確認: 左側のメニューから\n      「Windows Update」を選択。ここで「更新の確認」\n    （Check for updates）ボタンが表示されている場合、\n      それをクリックして手動で更新を確認できる。\n５．更新状況の確認: もし「デバイスは最新です」と表示されているかどうかを確認する",null,"機器操作","現場調査者"]
[null,2,"ウイルス対策ソフト","直接お客様の端末（代表1台）を操作し確認する\n\n（例）Window10 の場合\n１．タスクバーにある検索ボックスをクリックし、タスクバーの検索ボックスを開く\n２．「セキュリティ」または「ウイルス対策」で検索\n３．検索結果に表示される「Windows セキュリティ」をクリック\n４．左側のメニューから「ウイルスと脅威の防止」を選択\n５．この画面でWindows Defenderが有効になっているか、または他のウイルス対策ソフトがインストールされ\n　　　ているかを確認する\n\n回答欄に、ウイルス対策ソフトの名称を記載（画像の赤枠部分）\n\n\n\n\n\n\n\n\n\n\n",null,"機器操作","現場調査者"]
[null,3,"UTM","UTM有無",null,"目視確認","現場調査者"]
[null,8,"ルータのFW","ルータのFW（ファームウェア）を常に最新化しているか、または自動更新設定になっているかを管理画面にログインして確認する。ルータのファームウェアのバージョンを右に記載願います。\n\n（一般的な手順は以下の通り）\n１．Webブラウザを開き、ルータの管理画面にログインする。通常は192.168.0.1や192.168.1.1などのIPアドレスをブラウザに入力してアクセスする。\n２．ユーザー名とパスワードを入力してログインする。\n３．管理画面内で、現在のファームウェアのバージョン情報を確認する。（「システム情報」、「ステータス」、「About」などのセクションを確認する）\n\n",null,"機器操作","現場調査者"]
[null,null,null,"ルータのFW（ファームウェア）の最新化状況",null,"目視確認","現場調査者"]
[null,9,"Wi-Fi暗号化方式","以下方法によりWi-Fiの暗号化方式を確認する。\n\n■（PC,スマホ等より確認する場合）\nSSID/PASSを確認し、お客様のWi-Fiへアクセスする。\nWi-Fiの設定画面を開き、暗号化情報を確認\n（※機種によって非表示の場合あり）\n\n■（ルータより確認する場合）\n管理画面にログインし、Wi-Fiの暗号化方式を確認する。\n（一般的な手順は以下の通り）\n１．Webブラウザを開き、ルータの管理画面にログインする。通常は192.168.0.1や192.168.1.1などのIPアドレスをブラウザに入力してアクセスする。\n２．ユーザー名とパスワードを入力してログインする。\n３．管理画面内で、現在のファームウェアのバージョン情報を確認する。（「システム情報」、「ステータス」、「About」などのセクションを確認する）",null,"機器操作","現場調査者"]

{"sheet":"6.申込書兼調査報告書チェックリスト","index":15,"n_rows":47,"n_cols":6,"rows_kept":47,"cut":false,"hidden":true,"merged":[[43,1,46,1],[0,0,3,5],[10,1,24,1],[25,1,30,1],[31,1,35,1],[39,1,42,1]]}
["おまかせIC診断　申込書兼調査報告書チェックリスト\n第1.0版"]
[]
[]
[]
[null,null,null,null,null,"作業者\n氏名記入欄"]
[]
[]
["項番","シート名","小項目","チェック内容","マニュアル記載P","作業者チェック欄"]
[{"$f":"ROW()-8","v":1},"ー","チェックリスト利用有無","チェックリストによる申込書兼調査報告書提出前の確認の実施有無が記載されているか。","P63","o"]
[{"$f":"ROW()-8","v":2},"1.ネットワーク構成図\n2.平面図\n3.機器情報","端末情報","接続構成図と平面図、機器情報に記載されている端末の数、種類、アイコンが一致しているか","P64,67,68","o"]
[3,"1.ネットワーク構成図","端末情報","「機器No」「名称(PCなど)」「メーカ」「機種名」の記載をマニュアル通り全端末に記載しているか","P64\n（凡例P53）\nPanDA操作：P27","o"]
[4,null,"端末情報","各端末情報で端末番号は重複していないか","P64","o"]
[5,null,"端末情報","PCは、全て「PC」の記載になっていること","P64","o"]
[6,null,"ポート情報（オプション）","ポート番号を配線に記載しているか。(＃●で記載)","P64","o"]
[7,null,"ポート情報（オプション）","ポート情報が正確に記載されているか？\n※NG事例\n　→ポート名称が通称表記や省略されている\n　　・記載が「LAN1」だが写真では「LAN1-1」\n　　・記載が「WAN」だが写真では「INTERNET」\n　　・記載が「#U点」だが写真では「ISDN U/LINE」\n　→記載のポート番号にはケーブルが刺さっていない　　など","P64","o"]
[8,null,"全体","端末間で綺麗に接続が記載されているか(カギ線コネクタを利用しているか(推奨))","P64","o"]
[9,null,"全体","配線をEXCELの枠線で記載していないか。(EXCEL枠線記載の場合、コピー不可となってしまう)","－","o"]
[10,null,"全体","配線種類毎に指定されている色・スタイルで記載されているか (線の太さは１pt)\n(光ケーブル：黄色実線、LAN配線：青色実線、キヒモ・屋内線：黒色実線、無線：灰色点線、その他：紫実線)","P64\n（凡例P53）","o"]
[11,null,"全体","文字のフォントは「Meiryo UI」かつフォントサイズは10Ptで記載されているか。\n英数字記号は半角、ひらがな・カタカナ・漢字は全角で統一されているか。","P64","o"]
[12,null,"不明箇所","端末情報が未記載となっている箇所がないか。「調査不可」と記載されているか","P66","o"]
[13,null,"凡例","マニュアル通りの雲の色、機器の凡例を使用しているか。","P66\n（凡例P53）","o"]
[14,null,"全体","各端末の凡例の大きさに不自然な違いはないか。\nまた文字と文字、文字とアイコン等が重なっていないか。","－","o"]
[15,null,"アイコン配置","みやすい配置になっているか(配置機能で中央ぞろえ、上ぞろいを実施)","－","o"]
[16,null,"全体","接続先が不明の場合は「〇〇のため調査不可」等わかるように記載されているか","P66","o"]
[17,null,"行間","行間が固定値10pt統一されているか(1.ネットワーク構成図の凡例をそのまま使用すること)","P64","o"]
[18,"2.平面図","端末情報","「機器番号」が端末に記載されているか（PCの機器番号は不要）","P67","o"]
[19,null,"全体","平面図の線をEXCELの枠線で記載していないか。\n（EXCEL枠線記載の場合、コピー不可となってしまう）","P67","o"]
[20,null,"全体","図面等は添付画像の上に凡例を並べて記載されていないか。\n（お客様提供の図面利用はNG)","P25/P67","o"]
[21,null,"凡例","マニュアルまたは様式の凡例に記載されている適切な凡例を使用しているか\n(アイコンの凡例は「2.平面図」の右側に記載)","P53","o"]
[22,null,"全体","様式内のアイコンの大きさはマニュアルまたは様式の凡例に記載されている大きさと不自然な違いはないか。また文字と文字、文字とアイコン等が重なっていないか。","ー","o"]
[23,null,"文字","文字のフォントは「Meiryo UI」で文字サイズ10ptを使用しているか。　\n英数字記号は半角、ひらがな・漢字・カタカナは全角で統一されているか。","P67","o"]
[24,"3.機器情報","全体","オンサイト報告欄(紫色のセルの列)は全て記載されているか","P68","o"]
[25,null,"機器名メーカ","機器名とメーカが整合性とれているか\n(自社サービスは、ＮTT東日本がメーカ名)\n(例：ギガらくWiFiのメーカ名はcisco MerakiではなくNTT東日本)","P68","o"]
[26,null,"型番","正確に記載されているか。（写真を確認）\n※NG事例\n→型番表記省略、誤字\n　　・記載は「AT-G8　910/16」だが、写真では「AT-GS910/16」\n　　・記載は「DocuCenterⅦC4473」だが、写真は「DocuCentre-Ⅶ C4473」","P29/P31/P68","o"]
[27,null,"写真撮影結果","項目において、撮影結果が記載されているか。\n(グレーアウトの欄を除き○/調査不可のいずれかが記載されているか)","P77","o"]
[28,null,"写真撮影結果","写真撮影結果が調査不可の場合理由が記載されているか。","P77","o"]
[29,"4.調査シート\n（LANパフォーマンス）","回答欄","未投入時のピンク色ではなく、すべて投入が完了し、白になっているか","P69","o"]
[30,"5.調査シート\n（セキュリティ）","回答欄","未投入時のピンク色ではなく、すべて投入が完了し、白になっているか","P72","o"]
[31,"PanDA","出力ファイル","PanDAの出力ファイルが格納されているか（BRIDGEへ提出）","P60-P62","o"]
[32,"共通","レイアウト","セルの幅を動かしていないこと","P64/P67","o"]
[33,null,"機器No","各シート間で、記載している機器No、機器情報(機器種別を除く)の整合が取れているか。\nまた、機器Noの重複等がないか。\n※NG事例\n　→平面図とネットワーク構成図でアイコン数に相違あり\n　→ネットワーク構成図と機器情報で、メーカ、型番などに相違あり　　など","ー","o"]
[34,null,"不明点及び\n調査不可項目について","不明の記載はないか。\n(不明の場合も含め、調査不可と記載すること)","P12/P66/P68/P78","o"]
[35,null,"全体","オンサイトの記載担当箇所(紫色のセルの列)に空欄がないか","P12","o"]
[36,"写真","各機器","様式に記載されている分の写真が揃っているか\n(全景、背面、全面、ラベル)","P29/P75-P77","o"]
[37,null,"写真","各状態(ランプ、文字)が読み取れるか","P31","o"]
[38,null,"画面キャプチャ","文字が読み取れるか","-"]
[39,null,"命名","ファイル名が命名規則通りに記載されているか。\n(命名規則：機器番号_写真内容.jpg/例：機器50_機器全景.jpg)","P75","o"]

{"sheet":"7.申し送り事項","index":16,"n_rows":21,"n_cols":21,"rows_kept":21,"cut":false,"hidden":true,"merged":[[15,2,15,19],[15,20,15,29],[3,1,3,29],[4,1,4,4],[4,5,4,14],[4,15,4,17],[4,18,4,29],[5,1,5,4],[5,5,5,14],[5,15,5,17],[5,18,5,29],[6,1,6,29],[7,1,10,29],[13,1,13,29],[14,2,14,19],[14,20,14,29],[19,2,19,19],[19,20,19,29],[20,2,20,19],[20,20,20,29],[16,2,16,19],[16,20,16,29],[17,2,17,19],[17,20,17,29],[18,2,18,19],[18,20,18,29]]}
[]
[null,"記入必須"]
[]
[null,"オンサイトからの申し送り事項"]
[null,"拠点名",null,null,null,null,null,null,null,null,null,null,null,null,null,"調査担当者名"]
[null,"電話番号",null,null,null,null,null,null,null,null,null,null,null,null,null,"メールアドレス"]
[null,"申し送り事項"]
[]
[]
[]
[]
[]
[]
[null,"オンサイト（調査担当者）アンケート　※ご協力のほどよろしくお願いいたします"]
[null,"No.","設問",null,null,null,null,null,null,null,null,null,null,null,null,null,null,null,null,null,"回答"]
[null,1,"お客様から回線、NW機器、NW環境、弊社サービス等に関するお困り事や相談を受けましたか。"]
[null,2,"上記質問で「①はい」と答えた方は、どのような内容でしたか。",null,null,null,null,null,null,null,null,null,null,null,null,null,null,null,null,null,"自由記述"]
[null,3,"お客様設備（NW機器や回線）で、交換および増設した方が良い設備はありましたか。"]
[null,4,"上記質問で「①はい」と答えた方は、どの設備がどのような理由でそう思いましたか。\n【回答例】\n・●●の機器が古く、通信速度が出ていない可能性がある\n・一つのAPに●●台の機器が接続されているためAPの増設が必要\n・●●の箇所のLANケーブルのカテゴリが最大通信速度に対応していない",null,null,null,null,null,null,null,null,null,null,null,null,null,null,null,null,null,"自由記述"]
[null,5,"その他、お客様の設備において気になる点はありましたか。\n※リスク診断の調査内容以外で回答"]
[null,6,"上記質問で「①はい」と答えた方は、どのような点が気になりましたか\n\n",null,null,null,null,null,null,null,null,null,null,null,null,null,null,null,null,null,"自由記述"]

{"sheet":"レポート作成時⇒","index":17,"n_rows":0,"n_cols":0,"rows_kept":0,"cut":false,"hidden":true,"merged":[]}

{"sheet":"基本情報シート","index":18,"n_rows":2,"n_cols":50,"rows_kept":2,"cut":false,"hidden":true,"merged":[]}
["診断ID","企業ID","契約法人名（かな）","契約法人名","契約法人郵便番号","契約法人住所","契約者電話番号","お申込者部署名","お申込者氏名（かな）","お申込者氏名","お申込者電話番号","お申込者メールアドレス","申し込み日","プラン","オプション（PC）","オプション（AP）","オプション配線","金額","調査日","訪問先住所一致フラグ","訪問先（郵便番号）","訪問先住所","訪問先拠点名（カナ）","訪問先拠点名","訪問先連絡先一致フラグ","当日連絡先部署名","当日連絡先氏名（かな）","当日連絡先氏名","当日連絡先","事前アンケート回答有無","レポート返却先住所一致フラグ","レポート返却先部署","レポート返却先氏名（カナ）","レポート返却先氏名","レポート返却先メールアドレス","レポート返却先営業担当者一致フラグ","レポート返却先営業担当部署名","レポート返却先営業担当者氏名（カナ）","レポート返却先営業担当者氏名","レポート返却先営業担当者メールアドレス","NTT東-支店名","NTT東-部","NTT東-部門","NTT東-担当名","NTT東-担当者氏名","NTT東-販売chコード","NTT東-販売担当氏名コード","NTT東-TEL","NTT東-Mail","NTT東-FAX"]
[null,{"$f":"'【様式１】ICT診断依頼書（基本情報）'!O76 & \"\"","v":""},{"$f":"'【様式１】ICT診断依頼書（基本情報）'!R7 & \"\"","v":""},{"$f":"'【様式１】ICT診断依頼書（基本情報）'!O8 & \"\"","v":""},{"$f":"'【様式１】ICT診断依頼書（基本情報）'!O11 & \"\"","v":""},{"$f":"'【様式１】ICT診断依頼書（基本情報）'!Z11 & \"\"","v":""},{"$f":"'【様式１】ICT診断依頼書（基本情報）'!O10 & \"\"","v":""},{"$f":"'【様式１】ICT診断依頼書（基本情報）'!AO12 & \"\"","v":""},{"$f":"'【様式１】ICT診断依頼書（基本情報）'!R12 & \"\"","v":""},{"$f":"'【様式１】ICT診断依頼書（基本情報）'!O13 & \"\"","v":""},{"$f":"'【様式１】ICT診断依頼書（基本情報）'!AO13 & \"\"","v":""},{"$f":"'【様式１】ICT診断依頼書（基本情報）'!W14 & \"\"","v":""},{"$f":"DATE(2100,1,1)","v":"2100-01-01"},"セット診断",null,null,null,{"$f":"'【様式１】ICT診断依頼書（基本情報）'!AR21","v":0},{"$f":"DATE('【様式１】ICT診断依頼書（基本情報）'!L27,'【様式１】ICT診断依頼書（基本情報）'!R27,'【様式１】ICT診断依頼書（基本情報）'!W27)","v":{"$error":"#NUM!"}},"■",{"$f":"IF(基本情報テーブル[[#This Row],[訪問先住所一致フラグ]]=\"■\",基本情報テーブル[[#This Row],[契約法人郵便番号]],'【様式１】ICT診断依頼書（基本情報）'!#REF!&'【様式１】ICT診断依頼書（基本情報）'!#REF!)","v":""},{"$f":"IF(基本情報テーブル[[#This Row],[訪問先住所一致フラグ]]=\"■\",基本情報テーブル[[#This Row],[契約法人住所]],'【様式１】ICT診断依頼書（基本情報）'!#REF!&'【様式１】ICT診断依頼書（基本情報）'!#REF!&'【様式１】ICT診断依頼書（基本情報）'!#REF!&'【様式１】ICT診断依頼書（基本情報）'!#REF!&'【様式１】ICT診断依頼書（基本情報）'!#REF!&'【様式１】ICT診断依頼書（基本情報）'!#REF!)","v":""},null,null,{"$f":"'【様式１】ICT診断依頼書（基本情報）'!AE30","v":0},{"$f":"IF(基本情報テーブル[[#This Row],[訪問先連絡先一致フラグ]]=\"■\",基本情報テーブル[[#This Row],[お申込者部署名]],'【様式１】ICT診断依頼書（基本情報）'!N31 & \"\")","v":""},{"$f":"IF(基本情報テーブル[[#This Row],[訪問先連絡先一致フラグ]]=\"■\",基本情報テーブル[[#This Row],[お申込者氏名（かな）]],'【様式１】ICT診断依頼書（基本情報）'!R32 & \"\")","v":""},{"$f":"IF(基本情報テーブル[[#This Row],[訪問先連絡先一致フラグ]]=\"■\",基本情報テーブル[[#This Row],[お申込者氏名]],'【様式１】ICT診断依頼書（基本情報）'!N33 & \"\")","v":""},{"$f":"IF(基本情報テーブル[[#This Row],[訪問先連絡先一致フラグ]]=\"■\",基本情報テーブル[[#This Row],[契約者電話番号]],'【様式１】ICT診断依頼書（基本情報）'!N34 & \"\")","v":""},{"$f":"'【様式１】ICT診断依頼書（基本情報）'!W35","v":"□"},null,null,null,null,null,null,null,null,null,null,{"$f":"'【様式１】ICT診断依頼書（基本情報）'!O68 & \"\"","v":""},{"$f":"'【様式１】ICT診断依頼書（基本情報）'!AL68 & \"\"","v":""},{"$f":"'【様式１】ICT診断依頼書（基本情報）'!O69 & \"\"","v":""},{"$f":"'【様式１】ICT診断依頼書（基本情報）'!AL69 & \"\"","v":""},{"$f":"'【様式１】ICT診断依頼書（基本情報）'!O70 & \"\"","v":""},{"$f":"'【様式１】ICT診断依頼書（基本情報）'!O71 & \"\"","v":""},{"$f":"'【様式１】ICT診断依頼書（基本情報）'!AL70 & \"\"","v":""},{"$f":"'【様式１】ICT診断依頼書（基本情報）'!AL71 & \"\"","v":""},{"$f":"'【様式１】ICT診断依頼書（基本情報）'!O72 & \"\"","v":""}]

{"sheet":"申し送り事項シート","index":19,"n_rows":6,"n_cols":2,"rows_kept":6,"cut":false,"hidden":true,"merged":[]}
["項目名","内容"]
["拠点名",{"$f":"'7.申し送り事項'!F5&\"\"","v":""}]
["調査担当者名",{"$f":"'7.申し送り事項'!S5&\"\"","v":""}]
["電話番号",{"$f":"'7.申し送り事項'!F6&\"\"","v":""}]
["メールアドレス",{"$f":"'7.申し送り事項'!S6&\"\"","v":""}]
["申し送り事項",{"$f":"'7.申し送り事項'!B8&\"\"","v":""}]

{"sheet":"オンサイトアンケート","index":20,"n_rows":7,"n_cols":3,"rows_kept":7,"cut":false,"hidden":true,"merged":[]}
["設問No","設問","回答"]
[1,{"$f":"'7.申し送り事項'!C16","v":"お客様から回線、NW機器、NW環境、弊社サービス等に関するお困り事や相談を受けましたか。"},{"$f":"'7.申し送り事項'!U16&\"\"","v":""}]
[2,{"$f":"'7.申し送り事項'!C17","v":"上記質問で「①はい」と答えた方は、どのような内容でしたか。"},{"$f":"'7.申し送り事項'!U17&\"\"","v":"自由記述"}]
[3,{"$f":"'7.申し送り事項'!C18","v":"お客様設備（NW機器や回線）で、交換および増設した方が良い設備はありましたか。"},{"$f":"'7.申し送り事項'!U18&\"\"","v":""}]
[4,{"$f":"'7.申し送り事項'!C19","v":"上記質問で「①はい」と答えた方は、どの設備がどのような理由でそう思いましたか。\n【回答例】\n・●●の機器が古く、通信速度が出ていない可能性がある\n・一つのAPに●●台の機器が接続されているためAPの増設が必要\n・●●の箇所のLANケーブルのカテゴリが最大通信速度に対応していない"},{"$f":"'7.申し送り事項'!U19&\"\"","v":"自由記述"}]
[5,{"$f":"'7.申し送り事項'!C20","v":"その他、お客様の設備において気になる点はありましたか。\n※リスク診断の調査内容以外で回答"},{"$f":"'7.申し送り事項'!U20&\"\"","v":""}]
[6,{"$f":"'7.申し送り事項'!C21","v":"上記質問で「①はい」と答えた方は、どのような点が気になりましたか\n\n"},{"$f":"'7.申し送り事項'!U21&\"\"","v":"自由記述"}]

{"sheet":"8.ヒアリングシート（LANパフォーマンス）","index":21,"n_rows":31,"n_cols":14,"rows_kept":31,"cut":false,"hidden":true,"merged":[[1,1,2,7]]}
[]
[null,"4.LANパフォーマンス項目ヒアリングシート"]
[]
[]
[null,"No.","項目","具体的な調査方法","回答欄","データソース","投入者","必須項目"]
[null,"LAN-0001","NW機器の性能","目視確認により取得したIT機器一覧管理表から、各機器毎のメーカサイトへアクセスする。\n各機器が推奨される規格になっているかを確認する。\n有線規格（1000BASE対応になっているか）、無線規格（11ac対応になっているか）",{"$f":"_xlfn.IFS(挿入計算シート!B4=1,\"100%の端末が推奨規格\", 挿入計算シート!B4>=0.7,\"70％以上の端末が推奨規格\",挿入計算シート!B4<0.7, \"70%未満の端末が推奨規格\")","v":{"$error":"#DIV/0!"}},"WEB調査","レポート作成担当","●"]
[null,"LAN-0002","NW機器の設置環境","水害、落下、日光、ホコリ等写真よりリスクがあると判定可能な項目についてリスクを記載する。\nリスクのある箇所については、「（保守契約情報・写真）チェックリスト」の写真撮影結果にチェックをつけること。",{"$f":"IF(ISBLANK('4.調査シート（LANパフォーマンス）'!E6), \"調査者用より引用予定\", '4.調査シート（LANパフォーマンス）'!E6)","v":"調査者用より引用予定"},"目視確認","現場調査者","●"]
[null,"LAN-0003","EoL機器","EoLとなっている機器となっていないか、各機器のメーカーサイトへ接続し、確認する。",{"$f":"IF(挿入計算シート!B5=0,\"全端末EoL対象ではない\",\"EoL機器が一台以上存在\")","v":"全端末EoL対象ではない"},"WEB調査","レポート作成担当","●"]
[null,"LAN-0004","ループ検知機能","利用しているスイッチにループ検知機能があるかをメーカーページより確認する。",{"$f":"_xlfn.IFS(AND(挿入計算シート!B7=0,挿入計算シート!B8=0),\"全端末ループ防止機能あり\",AND(挿入計算シート!B7=0,挿入計算シート!B8>=1),\"調査未実施端末あり\", AND(挿入計算シート!B7>0,挿入計算シート!B8>=0), \"ループ防止機能なし端末あり\")","v":"全端末ループ防止機能あり"},"WEB調査","レポート作成担当","●",null,null,null,null,null,{"$f":"IF(ISBLANK('4.調査シート（LANパフォーマンス）'!E6), \"\", '4.調査シート（LANパフォーマンス）'!E6)","v":""}]
[null,"LAN-0005","Wi-Fi電波状況","無線LANテスタを活用して、Wi-Fi電波調査を実施する。",{"$f":"IF(ISBLANK('4.調査シート（LANパフォーマンス）'!E7), \"調査者用より引用予定\", '4.調査シート（LANパフォーマンス）'!E7)","v":"調査者用より引用予定"},"機器操作","現場調査者","●"]
[null,"LAN-0006","スループット状況","①スピードテストサイトでの調査【調査箇所①】\n測定した機器名を記載してください。\n※ネットワークが複数ある場合は、原則、ルータ毎に測定すること\n※お客様から測定箇所の指定があった場合は、測定した機器を記載すること",{"$f":"IF(ISBLANK('4.調査シート（LANパフォーマンス）'!E8), \"調査者用より引用予定\", '4.調査シート（LANパフォーマンス）'!E8)","v":"調査者用より引用予定"},"機器操作","現場調査者","●"]
[null,"LAN-0007","スループット状況","①スピードテストサイトでの調査【調査箇所①】\n以下サイトへアクセスし、速度を計測する。\nURL：https://fast.com/ja/",{"$f":"IF(ISBLANK('4.調査シート（LANパフォーマンス）'!E9), \"対象無\", '4.調査シート（LANパフォーマンス）'!E9)","v":"対象無"},"機器操作","現場調査者","●"]
[null,"LAN-0008","スループット状況","②スピードテストサイトでの調査【調査箇所②】\n測定した機器名を記載してください。\n※ネットワークが複数ある場合は、原則、ルータ毎に測定すること\n※お客様から測定箇所の指定があった場合は、測定した機器を記載すること",{"$f":"IF(ISBLANK('4.調査シート（LANパフォーマンス）'!E10), \"調査者用より引用予定\", '4.調査シート（LANパフォーマンス）'!E10)","v":"調査者用より引用予定"},"機器操作","現場調査者","●"]
[null,"LAN-0009","スループット状況","②スピードテストサイトでの調査【調査箇所②】\n以下サイトへアクセスし、速度を計測する。\nURL：https://fast.com/ja/",{"$f":"IF(ISBLANK('4.調査シート（LANパフォーマンス）'!E11), \"対象無\", '4.調査シート（LANパフォーマンス）'!E11)","v":"対象無"},"機器操作","現場調査者","●"]
[null,"LAN-0010","スループット状況","③スピードテストサイトでの調査【調査箇所③】\n測定した機器名を記載してください。\n※ネットワークが複数ある場合は、原則、ルータ毎に測定すること\n※お客様から測定箇所の指定があった場合は、測定した機器を記載すること",{"$f":"IF(ISBLANK('4.調査シート（LANパフォーマンス）'!E12), \"調査者用より引用予定\", '4.調査シート（LANパフォーマンス）'!E12)","v":"調査者用より引用予定"},"機器操作","現場調査者","●"]
[null,"LAN-0011","スループット状況","③スピードテストサイトでの調査【調査箇所③】\n以下サイトへアクセスし、速度を計測する。\nURL：https://fast.com/ja/",{"$f":"IF(ISBLANK('4.調査シート（LANパフォーマンス）'!E13), \"対象無\", '4.調査シート（LANパフォーマンス）'!E13)","v":"対象無"},"機器操作","現場調査者","●"]
[null,"LAN-0012","ボトルネック疑い有無","スピードテストの実施結果を元に、最上部と最下部で速度差分が出ているかを判定し、ボトルネック疑いのある箇所の有無を調査する。",{"$f":"IFERROR(_xlfn.IFS(挿入計算シート!B10=\"-\",\"-\",挿入計算シート!B10>=0.5,\"50%以上差分あり\",挿入計算シート!B10<0.5,\"50以上差分なし\"),\"-\")","v":"-"},"機器操作","現場調査者","●"]
[null,"LAN-0013","保守ベンダ","アンケートによる測定：\nNWに関して、保守ベンダはいますか？",{"$f":"IF(ISBLANK('事前アンケート（LANパフォーマンス）'!E6), \"事前アンケートより引用予定\", '事前アンケート（LANパフォーマンス）'!E6)","v":"事前アンケートより引用予定"},"アンケート","レポート作成担当","●"]
[null,"LAN-0014","保守ベンダ","アンケートによる測定：\n保守ベンダ名を教えてください。",{"$f":"IF(ISBLANK('事前アンケート（LANパフォーマンス）'!E7), \"事前アンケートより引用予定\", '事前アンケート（LANパフォーマンス）'!E7)","v":"事前アンケートより引用予定"},"アンケート","レポート作成担当","●"]
[null,"LAN-0015","IT管理者","アンケートによる測定：\n貴社のNW、機器等を管理するIT管理者はいますか？（専任・兼務・いない）",{"$f":"IF(ISBLANK('事前アンケート（LANパフォーマンス）'!E8), \"事前アンケートより引用予定\", '事前アンケート（LANパフォーマンス）'!E8)","v":"事前アンケートより引用予定"},"アンケート","レポート作成担当","●"]
[null,"LAN-0016","IT管理者","アンケートによる測定：\nまた、「いる」と回答した方はどの部署の方が担当されているか教えてください。",{"$f":"IF(ISBLANK('事前アンケート（LANパフォーマンス）'!E9), \"事前アンケートより引用予定\", '事前アンケート（LANパフォーマンス）'!E9)","v":"事前アンケートより引用予定"},"アンケート","レポート作成担当"]
[null,"LAN-0017","IT投資の計画","アンケートによる測定：\nIT機器関連の投資に関して、計画的に予算を取得していますか？（毎年・随時・取得していない）",{"$f":"IF(ISBLANK('事前アンケート（LANパフォーマンス）'!E10), \"事前アンケートより引用予定\", '事前アンケート（LANパフォーマンス）'!E10)","v":"事前アンケートより引用予定"},"アンケート","レポート作成担当","●"]
[null,"LAN-0018","24時間業務有無","アンケートによる測定：\n24時間稼働の業務はありますか？",{"$f":"IF(ISBLANK('事前アンケート（LANパフォーマンス）'!E11), \"事前アンケートより引用予定\", '事前アンケート（LANパフォーマンス）'!E11)","v":"事前アンケートより引用予定"},"アンケート","レポート作成担当","●"]
[null,"LAN-0019","24時間業務有無","アンケートによる測定：\n24時間業務があると回答した方にお伺いします。\nネットワークに関して夜間のトラブルが発生した際に対応できる保守体制は整っておりますか？",{"$f":"IF(ISBLANK('事前アンケート（LANパフォーマンス）'!E12), \"事前アンケートより引用予定\", '事前アンケート（LANパフォーマンス）'!E12)","v":"事前アンケートより引用予定"},"アンケート","レポート作成担当","●"]
[null,"LAN-0020","WANIP","”CMAN”サイトにアクセスし、WANIPを確認する。\nhttps://www.cman.jp/network/support/go_access.cgi/\n\n詳細は以下を参照\nビジネス系デリバリ業務実施マニュアル　～テクニカル編～\nルータ　1-5-2. WAN側ネットワークの調査",{"$f":"IF(ISBLANK('4.調査シート（LANパフォーマンス）'!E14), \"調査者用より引用予定\", '4.調査シート（LANパフォーマンス）'!E14)","v":"調査者用より引用予定"},"機器操作","現場調査者","●"]
[null,"LAN-0021","LANIP","LANIP\n",{"$f":"IF(ISBLANK('4.調査シート（LANパフォーマンス）'!E15), \"調査者用より引用予定\", '4.調査シート（LANパフォーマンス）'!E15)","v":"調査者用より引用予定"},"機器操作","現場調査者","●"]
[null,"LAN-0022","サブネット","サブネット\n",{"$f":"IF(ISBLANK('4.調査シート（LANパフォーマンス）'!E16), \"調査者用より引用予定\", '4.調査シート（LANパフォーマンス）'!E16)","v":"調査者用より引用予定"},"機器操作","現場調査者","●"]
[null,"LAN-0023","上記測定端末","上記項番13,14,15を測定した機器を記載してください。\n（記載例）　機器1",{"$f":"IF(ISBLANK('4.調査シート（LANパフォーマンス）'!E17), \"調査者用より引用予定\", '4.調査シート（LANパフォーマンス）'!E17)","v":"調査者用より引用予定"},"機器操作","現場調査者","●"]
[null,"LAN-0024","スループット状況","①スピードテスト結果の区分分け",{"$f":"_xlfn.IFS(E12=\"対象無\",\"-\",E12>=100,\"平均100Mbps以上\", E12<10,\"平均10Mbps未満\",AND((E12>=10),(E12<100)),\"平均99Mbps~10Mbps\")","v":"-"}]
[null,"LAN-0025","スループット状況","②スピードテスト結果の区分分け",{"$f":"_xlfn.IFS(E14=\"対象無\",\"-\",E14>=100,\"平均100Mbps以上\", E14<10,\"平均10Mbps未満\",AND((E14>=10),(E14<100)),\"平均99Mbps~10Mbps\")","v":"-"}]
[null,"LAN-0026","スループット状況","③スピードテスト結果の区分分け",{"$f":"_xlfn.IFS(E16=\"対象無\",\"-\",E16>=100,\"平均100Mbps以上\", E16<10,\"平均10Mbps未満\",AND((E16>=10),(E16<100)),\"平均99Mbps~10Mbps\")","v":"-"}]

{"sheet":"9.ヒアリングシート（セキュリティ）","index":22,"n_rows":36,"n_cols":8,"rows_kept":36,"cut":false,"hidden":true,"merged":[[1,1,2,7],[5,22,5,25]]}
[]
[null,"5.セキュリティ項目ヒアリングシート"]
[]
[]
[null,"No.","項目","具体的な調査方法","回答欄","データソース","投入者","必須項目"]
[null,"SEC-0001","OSアップデート","直接お客様の端末（代表1台）を操作しOSの状況を確認する。\n\n（例）Window10 の場合\n１．スタートメニューを開く: 左下のWindowsロゴをクリック\n２．設定に移動: スタートメニュー内で歯車のアイコンをクリック\u000b\n３．「更新とセキュリティ」を選択: 設定ウィンドウ内で\n      「更新とセキュリティ」をクリック\n４．Windows Updateを確認: 左側のメニューから\n      「Windows Update」を選択。ここで「更新の確認」\n    （Check for updates）ボタンが表示されている場合、\n      それをクリックして手動で更新を確認できる。\n５．更新状況の確認: もし「デバイスは最新です」と表示されているかどうかを確認する",{"$f":"IF(ISBLANK('5.調査シート（セキュリティ）'!E6), \"調査者用より引用予定\", '5.調査シート（セキュリティ）'!E6)","v":"調査者用より引用予定"},"機器操作","現場調査者","●"]
[null,"SEC-0002","ウイルス対策ソフト","直接お客様の端末（代表1台）を操作し確認する\n＜ウイルス対策ソフトの導入状況確認（Window10 の場合）＞\n１．タスクバーにある検索ボックスをクリックし、タスクバーの検索ボックスを開く\n２．「セキュリティ」または「ウイルス対策」で検索\n３．検索結果に表示される「Windows セキュリティ」をクリック\n４．左側のメニューから「ウイルスと脅威の防止」を選択\n５．この画面でWindows Defenderが有効になっているか、または他のウイルス対策ソフトがインストールされているかを確認する\n＜ウイルス対策ソフトのデーベース更新状況確認＞\nデスクトップ画面右下の「通知領域」からウイルス対策ソフトを確認し、最新のデータベースが適用されているかを確認する",{"$f":"IF(E8=\"利用中\",\"利用中\",\"未利用\")","v":"未利用"},"ー","自動判定","●"]
[null,"SEC-0003","ウイルス対策ソフト","アンケートによる測定：\nPC端末に関してお伺いします。ウイルス対策ソフトを利用していますか？ ",{"$f":"IF(ISBLANK('事前アンケート（セキュリティ）'!E6), \"アンケートより反映\",'事前アンケート（セキュリティ）'!E6)","v":"アンケートより反映"},"アンケート","レポート作成担当","●"]
[null,"SEC-0004","ウイルス対策ソフト","ウイルス対策ソフトの満了時期",{"$f":"IF(E10=\"なし\", \"未満了\",\n    IF(E10=\"アンケートより反映\", \"-\", IF(E10<DATE(YEAR(TODAY()), MONTH(TODAY())+1, 1), \"満了\", \"未満了\")))","v":"-"},"ー","自動判定","●"]
[null,"SEC-0005","ウイルス対策ソフト","アンケートによる測定：\n今、お使いのウイルス対策ソフトに関して、満了時期を教えてください。",{"$f":"IF(ISBLANK('事前アンケート（セキュリティ）'!E7), \"アンケートより反映\",'事前アンケート（セキュリティ）'!E7)","v":"アンケートより反映"},"アンケート","レポート作成担当"]
[null,"SEC-0006","ウイルス対策ソフト","アンケートによる測定：\n今、お使いのウイルス対策ソフトに関して、契約形態を教えてください。",{"$f":"IF(ISBLANK('事前アンケート（セキュリティ）'!E8), \"アンケートより反映\",'事前アンケート（セキュリティ）'!E8)","v":"アンケートより反映"},"アンケート","レポート作成担当"]
[null,"SEC-0007","ウイルス対策ソフト","アンケートによる測定：\nPC端末に関してお伺いします。EDRソリューションを利用していますか？\n※EDRソリューション…事後対策。マルウェアの侵入・感染後の対処を行うセキュリティソリューション",{"$f":"IF(ISBLANK('事前アンケート（セキュリティ）'!E9), \"アンケートより反映\",'事前アンケート（セキュリティ）'!E9)","v":"アンケートより反映"},"アンケート","レポート作成担当","●"]
[null,"SEC-0008","ウイルス対策ソフト","アンケートによる測定：\n今、お使いのEDRソリューション名を教えてください。 ",{"$f":"IF(ISBLANK('事前アンケート（セキュリティ）'!E10), \"アンケートより反映\",'事前アンケート（セキュリティ）'!E10)","v":"アンケートより反映"},"アンケート","レポート作成担当","●"]
[null,"SEC-0009","ウイルス対策ソフト","EDRソリューションの満了時期",{"$f":"IF(E15=\"なし\", \"未満了\",\nIF(E15=\"アンケートより反映\", \"-\", IF(E15<DATE(YEAR(TODAY()), MONTH(TODAY())+1, 1), \"満了\", \"未満了\")))","v":"-"},"ー","自動判定","●"]
[null,"SEC-0010","ウイルス対策ソフト","アンケートによる測定：\n今、お使いのEDRソリューションに関して、満了時期を教えてください。",{"$f":"IF(ISBLANK('事前アンケート（セキュリティ）'!E11), \"アンケートより反映\",'事前アンケート（セキュリティ）'!E11)","v":"アンケートより反映"},"アンケート","レポート作成担当"]
[null,"SEC-0011","ウイルス対策ソフト","アンケートによる測定：\n今、お使いのEDRソリューションに関して、契約形態を教えてください。",{"$f":"IF(ISBLANK('事前アンケート（セキュリティ）'!E12), \"アンケートより反映\",'事前アンケート（セキュリティ）'!E12)","v":"アンケートより反映"},"アンケート","レポート作成担当"]
[null,"SEC-0012","ウイルス対策ソフト","アンケートによる測定：\nウイルス対策ソフト、EDRソリューションに関し、定期的にセキュリティパッチの適用を実施していますか？",{"$f":"IF(ISBLANK('事前アンケート（セキュリティ）'!E13), \"アンケートより反映\",'事前アンケート（セキュリティ）'!E13)","v":"アンケートより反映"},"アンケート","レポート作成担当","●"]
[null,"SEC-0013","ウイルス対策ソフト","アンケートによる測定：\n万が一、ウイルス感染した際に対応が可能な体制はありますか？？",{"$f":"IF(ISBLANK('事前アンケート（セキュリティ）'!E14), \"アンケートより反映\",'事前アンケート（セキュリティ）'!E14)","v":"アンケートより反映"},"アンケート","レポート作成担当","●"]
[null,"SEC-0014","UTM","UTM有無",{"$f":"IF(ISBLANK('5.調査シート（セキュリティ）'!E8), \"調査者用より引用予定\", '5.調査シート（セキュリティ）'!E8)","v":"調査者用より引用予定"},"目視確認","現場調査者","●"]
[null,"SEC-0015","UTM","アンケートによる測定：\nUTMに関して、定期的にセキュリティパッチの適用を行っていますか？",{"$f":"IF(ISBLANK('事前アンケート（セキュリティ）'!E15), \"アンケートより反映\",'事前アンケート（セキュリティ）'!E15)","v":"アンケートより反映"},"アンケート","レポート作成担当","●"]
[null,"SEC-0016","UTM","（ウイルス対策ソフトで回答済）ウイルス感染した際に対応が可能な体制を構築していますか？",{"$f":"IF(ISBLANK(E18), \"ウイルス対策ソフトでの質問を自動反映\", E18)","v":"アンケートより反映"},"ー","自動判定","●"]
[null,"SEC-0017","Wi-Fiの初期設定変更","アンケートによる測定：\n社内で無線ルータをご利用されている方にお伺いします。普段利用されるSSIDは初期値より更新されておりますか？",{"$f":"IF(ISBLANK('事前アンケート（セキュリティ）'!E16), \"わからない\",'事前アンケート（セキュリティ）'!E16)","v":"わからない"},"アンケート","レポート作成担当"]
[null,"SEC-0018","Wi-Fiの初期設定変更","アンケートによる測定：\n利用しているPASSは初期値なのか、お客様が変更して設定したものなのか教えてください。",{"$f":"IF(ISBLANK('事前アンケート（セキュリティ）'!E17), \"わからない\",'事前アンケート（セキュリティ）'!E17)","v":"わからない"},"アンケート","レポート作成担当"]
[null,"SEC-0019","Wi-Fiの初期設定変更","アンケートによる測定：\n\n設定しているパスワードは以下を満たしたものを設定しておりますか？\n　・最低でも10文字以上の文字数で構成されている。\n　・パスワードの中に数字や、「@」、「%」、「\"」などの記号も混ぜている。\n　・パスワード内のアルファベットに大文字と小文字の両方を入れている。\n　・サービスごとに違うパスワードを設定している。",{"$f":"IF(ISBLANK('事前アンケート（セキュリティ）'!E18), \"わからない\",'事前アンケート（セキュリティ）'!E18)","v":"わからない"},"アンケート","レポート作成担当"]
[null,"SEC-0020","パスワードの管理ポリシー","アンケートによる測定：\n貴社の社内ルールとして、パスワードの管理ポリシーは設定されてますか？",{"$f":"IF(ISBLANK('事前アンケート（セキュリティ）'!E19), \"アンケートより反映\",'事前アンケート（セキュリティ）'!E19)","v":"アンケートより反映"},"アンケート","レポート作成担当","●"]
[null,"SEC-0021","パスワードの管理ポリシー","アンケートによる測定：\n設定している管理ポリシーは従業員へ展開されておりますか？",{"$f":"IF(ISBLANK('事前アンケート（セキュリティ）'!E20), \"アンケートより反映\",'事前アンケート（セキュリティ）'!E20)","v":"アンケートより反映"},"アンケート","レポート作成担当","●"]
[null,"SEC-0022","社内共有設定","アンケートによる測定：\nネットワーク接続した複合機やNAS、クラウドストレージ等のクラウドサービス、グループウェアのアクセス権限を設定していますか？",{"$f":"IF(ISBLANK('事前アンケート（セキュリティ）'!E21), \"アンケートより反映\",'事前アンケート（セキュリティ）'!E21)","v":"アンケートより反映"},"アンケート","レポート作成担当","●"]
[null,"SEC-0023","社内共有設定","アンケートによる測定：\n設定したアクセス権限は定期的に見直しを実施していますか？",{"$f":"IF(ISBLANK('事前アンケート（セキュリティ）'!E22), \"アンケートより反映\",'事前アンケート（セキュリティ）'!E22)","v":"アンケートより反映"},"アンケート","レポート作成担当","●"]
[null,"SEC-0024","セキュリティ情報収集・周知","アンケートによる測定：\n新たなセキュリティ脅威や攻撃の手口に関する情報収集しておりますか？",{"$f":"IF(ISBLANK('事前アンケート（セキュリティ）'!E23), \"アンケートより反映\",'事前アンケート（セキュリティ）'!E23)","v":"アンケートより反映"},"アンケート","レポート作成担当","●"]
[null,"SEC-0025","セキュリティ情報収集・周知","アンケートによる測定：管理者から従業員に対して、情報セキュリティに関して、注意喚起する取り組みを実施していますか？",{"$f":"IF(ISBLANK('事前アンケート（セキュリティ）'!E24), \"アンケートより反映\",'事前アンケート（セキュリティ）'!E24)","v":"アンケートより反映"},"アンケート","レポート作成担当","●"]
[null,"SEC-0026","ルータのFW","①ルータの機種名を確認しサポート期間中かどうかをWeb検索により確認する",null,"WEB調査","レポート作成担当","●"]
[null,"SEC-0027","ルータのFW","ルータのFW（ファームウェア）を常に最新化しているか、または自動更新設定になっているかを管理画面にログインして確認する。ルータのファームウェアのバージョンを右に記載願います。\n\n（一般的な手順は以下の通り）\n１．Webブラウザを開き、ルータの管理画面にログインする。通常は192.168.0.1や192.168.1.1などのIPアドレスをブラウザに入力してアクセスする。\n２．ユーザー名とパスワードを入力してログインする。\n３．管理画面内で、現在のファームウェアのバージョン情報を確認する。（「システム情報」、「ステータス」、「About」などのセクションを確認する）\n\n",{"$f":"IF(ISBLANK('5.調査シート（セキュリティ）'!E9), \"調査者用より引用予定\", '5.調査シート（セキュリティ）'!E9)","v":"調査者用より引用予定"},"機器操作","現場調査者","●"]
[null,"SEC-0028","ルータのFW","ルータのFW（ファームウェア）の最新化状況",{"$f":"IF(ISBLANK('5.調査シート（セキュリティ）'!E10), \"調査者用より引用予定\", '5.調査シート（セキュリティ）'!E10)","v":"調査者用より引用予定"},"機器操作","現場調査者","●"]
[null,"SEC-0029","Wi-Fi暗号化方式","以下方法によりWi-Fiの暗号化方式を確認する。\n\n■（PC,スマホ等より確認する場合）\nSSID/PASSを確認し、お客様のWi-Fiへアクセスする。\nWi-Fiの設定画面を開き、暗号化情報を確認\n（※機種によって非表示の場合あり）\n\n■（ルータより確認する場合）\n管理画面にログインし、Wi-Fiの暗号化方式を確認する。\n（一般的な手順は以下の通り）\n１．Webブラウザを開き、ルータの管理画面にログインする。通常は192.168.0.1や192.168.1.1などのIPアドレスをブラウザに入力してアクセスする。\n２．ユーザー名とパスワードを入力してログインする。\n３．管理画面内で、現在のファームウェアのバージョン情報を確認する。（「システム情報」、「ステータス」、「About」などのセクションを確認する）",{"$f":"IF(ISBLANK('5.調査シート（セキュリティ）'!E11), \"調査者用より引用予定\", '5.調査シート（セキュリティ）'!E11)","v":"調査者用より引用予定"},"機器操作","現場調査者","●"]
[null,"SEC-0030","電子メール","アンケートによる測定：\n実施している【受信メール対策】があれば、内容を教えてください。",{"$f":"IF(ISBLANK('事前アンケート（セキュリティ）'!E25), \"わからない\",'事前アンケート（セキュリティ）'!E25)","v":"わからない"},"アンケート","レポート作成担当"]
[null,"SEC-0031","電子メール","アンケートによる測定：\n実施している【送信メール対策】があれば、内容を教えてください。",{"$f":"IF(ISBLANK('事前アンケート（セキュリティ）'!E26), \"わからない\",'事前アンケート（セキュリティ）'!E26)","v":"わからない"},"アンケート","レポート作成担当"]

{"sheet":"CAF","index":23,"n_rows":6,"n_cols":2,"rows_kept":6,"cut":false,"hidden":true,"merged":[]}
["契約番号","契約先"]
[{"$f":"'【様式１】ICT診断依頼書（基本情報）'!U43&'【様式１】ICT診断依頼書（基本情報）'!Y43","v":""},{"$f":"'【様式１】ICT診断依頼書（基本情報）'!M43","v":0}]
[{"$f":"'【様式１】ICT診断依頼書（基本情報）'!U44&'【様式１】ICT診断依頼書（基本情報）'!Y44","v":""},{"$f":"'【様式１】ICT診断依頼書（基本情報）'!M44","v":0}]
[{"$f":"'【様式１】ICT診断依頼書（基本情報）'!U45&'【様式１】ICT診断依頼書（基本情報）'!Y45","v":""},{"$f":"'【様式１】ICT診断依頼書（基本情報）'!M45","v":0}]
[{"$f":"'【様式１】ICT診断依頼書（基本情報）'!U45&'【様式１】ICT診断依頼書（基本情報）'!Y46","v":""},{"$f":"'【様式１】ICT診断依頼書（基本情報）'!M46","v":0}]
[{"$f":"'【様式１】ICT診断依頼書（基本情報）'!U47&'【様式１】ICT診断依頼書（基本情報）'!Y47","v":""},{"$f":"'【様式１】ICT診断依頼書（基本情報）'!M47","v":0}]

{"sheet":"挿入計算シート","index":24,"n_rows":10,"n_cols":5,"rows_kept":10,"cut":false,"hidden":true,"merged":[]}
[null,null,null,null,"端末ナンバー一覧"]
["端末数",{"$f":"COUNTA(端末機器一覧テーブル[[機器種別    ]])-1","v":0},null,null,{"$f":"IFERROR(_xlfn.VSTACK(\n    _xlfn._xlws.FILTER(\n        端末機器一覧テーブル[機器ナンバー],\n        (端末機器一覧テーブル[[機器種別    ]]<>\"\") * (端末機器一覧テーブル[機器ナンバー]<>\"例\")),\"対象無\"),\"対象無\")","v":"対象無"}]
["推奨機器数",{"$f":"COUNTIFS(端末機器一覧テーブル[無線対応規格],\"11ac\",端末機器一覧テーブル[有線対応規格],\"1000BASE\")+\nCOUNTIFS(端末機器一覧テーブル[無線対応規格],\"11ax\",端末機器一覧テーブル[有線対応規格],\"1000BASE\")+\nCOUNTIFS(端末機器一覧テーブル[無線対応規格],\"11ac\",端末機器一覧テーブル[有線対応規格],\"有線接続機能無\")+\nCOUNTIFS(端末機器一覧テーブル[無線対応規格],\"11ax\",端末機器一覧テーブル[有線対応規格],\"有線接続機能無\")+\nCOUNTIFS(端末機器一覧テーブル[無線対応規格],\"無線接続機能無\",端末機器一覧テーブル[有線対応規格],\"1000BASE\")-1","v":0}]
["推奨端末割合",{"$f":"B3/B2","v":{"$error":"#DIV/0!"}}]
["Eol対象機器数",{"$f":"COUNTIF(端末機器一覧テーブル[保守サポート終了時期],\"<\"&TODAY())","v":0}]
["Eol調査未実施数",{"$f":"COUNTIF(端末機器一覧テーブル[保守サポート終了時期],\"-\")","v":0}]
["ループ防止機能未対象機器数",{"$f":"COUNTIFS(端末機器一覧テーブル[ループ検知機能],\"×\")","v":0}]
["ループ防止調査未実施",{"$f":"COUNTIFS(端末機器一覧テーブル[ループ検知機能],\"ー\")","v":0}]
["スループット差分",{"$f":"MIN('8.ヒアリングシート（LANパフォーマンス）'!E12,'8.ヒアリングシート（LANパフォーマンス）'!E14,'8.ヒアリングシート（LANパフォーマンス）'!E16)/MAX('8.ヒアリングシート（LANパフォーマンス）'!E12,'8.ヒアリングシート（LANパフォーマンス）'!E14,'8.ヒアリングシート（LANパフォーマンス）'!E16)","v":{"$error":"#DIV/0!"}}]
["ボトルネック指標",{"$f":"IF(\n    COUNTIF('8.ヒアリングシート（LANパフォーマンス）'!E12,\"対象無\")+COUNTIF('8.ヒアリングシート（LANパフォーマンス）'!E14,\"対象無\")+COUNTIF('8.ヒアリングシート（LANパフォーマンス）'!E16,\"対象無\")=2,\n    \"-\",1-B9)","v":{"$error":"#DIV/0!"}}]